Workbook

Sheet Summary
A3: Paragon Mortgages (No.9) PLC
A5: Information as at the Principal Determination Date | B5: 2005-10-31 | C5: 2006-01-31 | D5: 2006-04-30 | E5: 2006-07-31 | F5: 2006-10-31 | G5: 2007-01-31 | H5: 2007-04-30 | I5: 2007-07-31 | J5: 2007-10-31 | K5: 2008-01-31 | L5: 2008-04-30 | M5: 2008-07-31 | N5: 2008-10-31 | O5: 2009-01-30 | P5: 2009-04-30 | Q5: 2009-07-31 | R5: 2009-10-30 | S5: 2010-01-29 | T5: 2010-04-30 | U5: 2010-07-30 | V5: 2010-10-29 | W5: 2011-01-31 | X5: 2011-04-28 | Y5: 2011-07-29 | Z5: 2011-10-31 | AA5: 2012-01-31 | AB5: 2012-04-30 | AC5: 2012-07-31 | AD5: 2012-10-31 | AE5: 2013-01-31 | AF5: 2013-04-30 | AG5: 2013-07-31 | AH5: 2013-10-31 | AI5: 2014-01-31 | AJ5: 2014-04-30 | AK5: 2014-07-31 | AL5: 2014-10-31 | AM5: 2015-01-30 | AN5: 2015-04-30 | AO5: 2015-07-31 | AP5: 2015-10-30 | AQ5: 2016-01-29 | AR5: 2016-04-29 | AS5: 2016-07-29 | AT5: 2016-10-31 | AU5: 2017-01-31 | AV5: 2017-04-28 | AW5: 2017-07-31 | AX5: 2017-10-31 | AY5: 2018-01-31 | AZ5: 2018-04-30 | BA5: 2018-07-31 | BB5: 2018-10-31 | BC5: 2019-01-31 | BD5: 2019-04-30 | BE5: 2019-07-31 | BF5: 2019-10-31 | BG5: 2020-01-31
A6: Mortgage Asset Balance | B6: 680368 | C6: 665419 | D6: 648615 | E6: 626037 | F6: 612146 | G6: 591853 | H6: 566839 | I6: 493121 | J6: 445605 | K6: 415286 | L6: 389059 | M6: 365538 | N6: 351644 | O6: 343153 | P6: 339248 | Q6: 336826 | R6: 334058 | S6: 331074 | T6: 328834 | U6: 325788 | V6: 321761 | W6: 319777 | X6: 318401 | Y6: 316207 | Z6: 313954 | AA6: 312266 | AB6: 309192 | AC6: 307357 | AD6: 305090 | AE6: 302833 | AF6: 300203 | AG6: 296856 | AH6: 294759 | AI6: 292137 | AJ6: 288524 | AK6: 285472 | AL6: 282346.2666 | AM6: 278842.3526 | AN6: 276294.3265 | AO6: 272250.686 | AP6: 267015.6364 | AQ6: 263981.0672 | AR6: 256154.7123 | AS6: 253453.7183 | AT6: 250370.437 | AU6: 246045.9057 | AV6: 242527.2581 | AW6: 233721.3427 | AX6: 231218.804 | AY6: 228543.5081 | AZ6: 224793.0672 | BA6: 221165.4529 | BB6: 216998.1665 | BC6: 212551.2646 | BD6: 209481.6466 | BE6: 205577.2857 | BF6: 201476.2316 | BG6: 0
A7: Total Notes | B7: =SUM(B8:B14) -> 680368 | C7: =SUM(C8:C14) -> 665419 | D7: =SUM(D8:D14) -> 648615 | E7: =SUM(E8:E14) -> 626037 | F7: =SUM(F8:F14) -> 612146 | G7: =SUM(G8:G14)+1 -> 591853 | H7: =SUM(H8:H14)+1 -> 566839 | I7: =SUM(I8:I14) -> 493121 | J7: 445605 | K7: 415286 | L7: 389059 | M7: 365538 | N7: 351644 | O7: =SUM(O8:O14) -> 343153 | P7: =SUM(P8:P14) -> 339248 | Q7: =SUM(Q8:Q14)-1 -> 336826 | R7: =SUM(R8:R14) -> 334058 | S7: 331074 | T7: 328834 | U7: 325788 | V7: 321761 | W7: 319777 | X7: =SUM(X8:X14) -> 318401 | Y7: =SUM(Y8:Y14)+1 -> 316207 | Z7: =SUM(Z8:Z14)+1 -> 313954 | AA7: =SUM(AA8:AA14) -> 312266 | AB7: =SUM(AB8:AB14) -> 309192 | AC7: =SUM(AC8:AC14) -> 307357 | AD7: =SUM(AD8:AD14)+1 -> 305090 | AE7: =SUM(AE8:AE14)-1 -> 302833 | AF7: =SUM(AF8:AF14) -> 300203 | AG7: =SUM(AG8:AG14)-1 -> 296856 | AH7: =SUM(AH8:AH14) -> 294759 | AI7: =SUM(AI8:AI14)-1 -> 292137 | AJ7: =SUM(AJ8:AJ14)+1 -> 288524 | AK7: =SUM(AK8:AK14)+1 -> 285472 | AL7: =SUM(AL8:AL14) -> 282346 | AM7: =SUM(AM8:AM14) -> 278842 | AN7: =SUM(AN8:AN14)+1 -> 276294 | AO7: =SUM(AO8:AO14) -> 272251 | AP7: =SUM(AP8:AP14)+1 -> 267016 | AQ7: =SUM(AQ8:AQ14)-1 -> 263981 | AR7: =SUM(AR8:AR14) -> 256155 | AS7: =SUM(AS8:AS14) -> 253454 | AT7: =SUM(AT8:AT14) -> 250370 | AU7: =SUM(AU8:AU14) -> 246046 | AV7: =SUM(AV8:AV14)-2 -> 242527 | AW7: =SUM(AW8:AW14) -> 233721 | AX7: =SUM(AX8:AX14) -> 231219 | AY7: =SUM(AY8:AY14) -> 228544 | AZ7: =SUM(AZ8:AZ14) -> 224793 | BA7: =SUM(BA8:BA14)-1 -> 221165 | BB7: =SUM(BB8:BB14)-1 -> 216998 | BC7: =SUM(BC8:BC14) -> 212551 | BD7: =SUM(BD8:BD14)-1 -> 209482 | BE7: =SUM(BE8:BE14)+1 -> 205577 | BF7: =SUM(BF8:BF14) -> 201476 | BG7: =SUM(BG8:BG14) -> 0
A8: Class Aa Notes | B8: 335121 | C8: 326837 | D8: 317526 | E8: 305015 | F8: 297317 | G8: 286072 | H8: 272211 | I8: 231362 | J8: 205032 | K8: 188231 | L8: 173698 | M8: 160664 | N8: 152965 | O8: 148260 | P8: 146096 | Q8: 144754 | R8: 143220 | S8: 141566 | T8: 140325 | U8: 140325 | V8: 139786 | W8: 138924 | X8: 138326 | Y8: 137373 | Z8: 136394 | AA8: 135661 | AB8: 134325 | AC8: 133528 | AD8: 132543 | AE8: 131563 | AF8: 130420 | AG8: 128966 | AH8: 128055 | AI8: 126916 | AJ8: 125346 | AK8: 124020 | AL8: 122662 | AM8: 121140 | AN8: 120033 | AO8: 118277 | AP8: 116002 | AQ8: 114684 | AR8: 111284 | AS8: 110111 | AT8: 108771 | AU8: 106892 | AV8: 105364 | AW8: 101538 | AX8: 100451 | AY8: 99289 | AZ8: 97659 | BA8: 96083 | BB8: 94273 | BC8: 92341 | BD8: 91007 | BE8: 89311 | BF8: 87529 | BG8: 0
A9: Class Ab Notes | B9: 236813 | C9: 230959 | D9: 224379 | E9: 215538 | F9: 210099 | G9: 202152 | H9: 192357 | I9: 163491 | J9: 144885 | K9: 133013 | L9: 122743 | M9: 113533 | N9: 108092 | O9: 104767 | P9: 103238 | Q9: 102290 | R9: 101206 | S9: 100038 | T9: 99160 | U9: 99160 | V9: 98779 | W9: 98170 | X9: 97748 | Y9: 97074 | Z9: 96382 | AA9: 95864 | AB9: 94921 | AC9: 94357 | AD9: 93661 | AE9: 92969 | AF9: 92161 | AG9: 91134 | AH9: 90490 | AI9: 89685 | AJ9: 88576 | AK9: 87639 | AL9: 86679 | AM9: 85603 | AN9: 84821 | AO9: 83580 | AP9: 81973 | AQ9: 81041 | AR9: 78638 | AS9: 77809 | AT9: 76863 | AU9: 75535 | AV9: 74455 | AW9: 71752 | AX9: 70983 | AY9: 70162 | AZ9: 69011 | BA9: 67897 | BB9: 66618 | BC9: 65252 | BD9: 64310 | BE9: 63111 | BF9: 61852 | BG9: 0
A10: Class Ac Notes | B10: 32834 | C10: 32023 | D10: 31110 | E10: 29884 | F10: 29130 | G10: 28028 | H10: 26670 | I10: 22668 | J10: 20088 | K10: 18442 | L10: 17018 | M10: 15741 | N10: 14987 | O10: 14526 | P10: 14314 | Q10: 14183 | R10: 14032 | S10: 13870 | T10: 13749 | U10: 13749 | V10: 13696 | W10: 13611 | X10: 13553 | Y10: 13459 | Z10: 13363 | AA10: 13292 | AB10: 13161 | AC10: 13083 | AD10: 12986 | AE10: 12890 | AF10: 12778 | AG10: 12636 | AH10: 12546 | AI10: 12435 | AJ10: 12281 | AK10: 12151 | AL10: 12018 | AM10: 11869 | AN10: 11760 | AO10: 11588 | AP10: 11365 | AQ10: 11236 | AR10: 10903 | AS10: 10788 | AT10: 10657 | AU10: 10473 | AV10: 10323 | AW10: 9948 | AX10: 9842 | AY10: 9728 | AZ10: 9568 | BA10: 9414 | BB10: 9236 | BC10: 9047 | BD10: 8917 | BE10: 8750 | BF10: 8576 | BG10: 0
A11: Class Ba Notes | B11: 7000 | C11: 7000 | D11: 7000 | E11: 7000 | F11: 7000 | G11: 7000 | H11: 7000 | I11: 7000 | J11: 7000 | K11: 7000 | L11: 7000 | M11: 7000 | N11: 7000 | O11: 7000 | P11: 7000 | Q11: 7000 | R11: 7000 | S11: 7000 | T11: 7000 | U11: 6718 | V11: 6435 | W11: 6396 | X11: 6368 | Y11: 6324 | Z11: 6279 | AA11: 6245 | AB11: 6184 | AC11: 6147 | AD11: 6102 | AE11: 6057 | AF11: 6004 | AG11: 5937 | AH11: 5895 | AI11: 5843 | AJ11: 5770 | AK11: 5709 | AL11: 5647 | AM11: 5577 | AN11: 5526 | AO11: 5445 | AP11: 5340 | AQ11: 5280 | AR11: 5123 | AS11: 5069 | AT11: 5007 | AU11: 4921 | AV11: 4851 | AW11: 4674 | AX11: 4624 | AY11: 4571 | AZ11: 4496 | BA11: 4423 | BB11: 4340 | BC11: 4251 | BD11: 4190 | BE11: 4112 | BF11: 4029 | BG11: 0
A12: Class Bb Notes | B12: 20300 | C12: 20300 | D12: 20300 | E12: 20300 | F12: 20300 | G12: 20300 | H12: 20300 | I12: 20300 | J12: 20300 | K12: 20300 | L12: 20300 | M12: 20300 | N12: 20300 | O12: 20300 | P12: 20300 | Q12: 20300 | R12: 20300 | S12: 20300 | T12: 20300 | U12: 19482 | V12: 18662 | W12: 18547 | X12: 18467 | Y12: 18340 | Z12: 18209 | AA12: 18111 | AB12: 17933 | AC12: 17827 | AD12: 17695 | AE12: 17564 | AF12: 17412 | AG12: 17218 | AH12: 17096 | AI12: 16944 | AJ12: 16734 | AK12: 16557 | AL12: 16376 | AM12: 16173 | AN12: 16025 | AO12: 15790 | AP12: 15487 | AQ12: 15311 | AR12: 14857 | AS12: 14700 | AT12: 14521 | AU12: 14271 | AV12: 14067 | AW12: 13556 | AX12: 13411 | AY12: 13255 | AZ12: 13038 | BA12: 12828 | BB12: 12586 | BC12: 12328 | BD12: 12150 | BE12: 11923 | BF12: 11686 | BG12: 0
A13: Class Ca Notes | B13: 3000 | C13: 3000 | D13: 3000 | E13: 3000 | F13: 3000 | G13: 3000 | H13: 3000 | I13: 3000 | J13: 3000 | K13: 3000 | L13: 3000 | M13: 3000 | N13: 3000 | O13: 3000 | P13: 3000 | Q13: 3000 | R13: 3000 | S13: 3000 | T13: 3000 | U13: 2879 | V13: 2758 | W13: 2741 | X13: 2729 | Y13: 2710 | Z13: 2691 | AA13: 2677 | AB13: 2650 | AC13: 2634 | AD13: 2615 | AE13: 2596 | AF13: 2573 | AG13: 2544 | AH13: 2527 | AI13: 2504 | AJ13: 2473 | AK13: 2447 | AL13: 2420 | AM13: 2390 | AN13: 2368 | AO13: 2334 | AP13: 2289 | AQ13: 2263 | AR13: 2196 | AS13: 2173 | AT13: 2146 | AU13: 2109 | AV13: 2079 | AW13: 2003 | AX13: 1982 | AY13: 1959 | AZ13: 1927 | BA13: 1896 | BB13: 1860 | BC13: 1822 | BD13: 1796 | BE13: 1762 | BF13: 1727 | BG13: 0
A14: Class Cb Notes | B14: 45300 | C14: 45300 | D14: 45300 | E14: 45300 | F14: 45300 | G14: 45300 | H14: 45300 | I14: 45300 | J14: 45300 | K14: 45300 | L14: 45300 | M14: 45300 | N14: 45300 | O14: 45300 | P14: 45300 | Q14: 45300 | R14: 45300 | S14: 45300 | T14: 45300 | U14: 43475 | V14: 41645 | W14: 41388 | X14: 41210 | Y14: 40926 | Z14: 40635 | AA14: 40416 | AB14: 40018 | AC14: 39781 | AD14: 39487 | AE14: 39195 | AF14: 38855 | AG14: 38422 | AH14: 38150 | AI14: 37811 | AJ14: 37343 | AK14: 36948 | AL14: 36544 | AM14: 36090 | AN14: 35760 | AO14: 35237 | AP14: 34559 | AQ14: 34167 | AR14: 33154 | AS14: 32804 | AT14: 32405 | AU14: 31845 | AV14: 31390 | AW14: 30250 | AX14: 29926 | AY14: 29580 | AZ14: 29094 | BA14: 28625 | BB14: 28086 | BC14: 27510 | BD14: 27113 | BE14: 26607 | BF14: 26077 | BG14: 0
A15: Class B and C Notes as a % of the Total Notes | B15: =SUM(B11:B14)/B7 -> 0.111116337 | C15: 0.113612626 | D15: 0.1165560463 | E15: 0.1207596356 | F15: 0.1234999494 | G15: 0.1277344205 | H15: 0.1333712042 | I15: 0.1533092284 | J15: 0.1696569832 | K15: 0.1820432184 | L15: 0.1943150011 | M15: 0.206818443 | N15: 0.2149901605 | O15: 0.2203098909 | P15: 0.2228458237 | Q15: 0.2244482314 | R15: 0.2263080064 | S15: 0.228347741 | T15: 0.2299032339 | U15: 0.2227031075 | V15: 0.2159988314 | W15: 0.2160005254 | X15: 0.2159980653 | Y15: 0.2159977483 | Z15: 0.2159997961 | AA15: =SUM(AA11:AA14)/AA7 -> 0.2159985397 | AB15: 0.2159984734 | AC15: 0.2159996356 | AD15: 0.2159985578 | AE15: 0.2160002378 | AF15: 0.2160005063 | AG15: =SUM(AG11:AG14)/AG7 -> 0.2160003503 | AH15: 0.21600019 | AI15: 0.2160013966 | AJ15: 0.2159958964 | AK15: 0.2159966652 | AL15: 0.216000935 | AM15: =SUM(AM11:AM14)/AM7 -> 0.216000459 | AN15: 0.2159981759 | AO15: =SUM(AO11:AO14)/AO7 -> 0.2159992066 | AP15: 0.2159982922 | AQ15: =SUM(AQ11:AQ14)/AQ7 -> 0.2160041821 | AR15: 0.21600203 | AS15: =SUM(AS11:AS14)/AS7 -> 0.2159997475 | AT15: 0.2159963254 | AU15: =SUM(AU11:AU14)/AU7 -> 0.2160002601 | AV15: 0.216004816 | AW15: =SUM(AW11:AW14)/AW7 -> 0.2159968509 | AX15: 0.2159986852 | AY15: =SUM(AY11:AY14)/AY7 -> 0.2159977947 | AZ15: 0.2159987188 | BA15: =SUM(BA11:BA14)/BA7 -> 0.2160016277 | BB15: 0.2160019908 | BC15: =SUM(BC11:BC14)/BC7 -> 0.2159999247 | BD15: 0.216004239 | BE15: =SUM(BE11:BE14)/BE7 -> 0.2159969257 | BF15: 0.2160009133 | BG15: 0
A16: Overall Lifetime Redemption Rate | B16: 0.1118 | C16: 0.11 | D16: 0.1141 | E16: 0.1245 | F16: 0.1239 | G16: 0.1272 | H16: 0.1343 | I16: 0.1788 | J16: 0.2002 | K16: 0.2073 | L16: 0.2109 | M16: 0.2134 | N16: 0.2086 | O16: 0.2012 | P16: 0.1919 | Q16: 0.1827 | R16: 0.1751 | S16: 0.1682 | T16: 0.1616 | U16: 0.1556 | V16: 0.1509 | W16: 0.1457 | X16: 0.1407 | Y16: 0.1363 | Z16: 0.1323 | AA16: 0.1285 | AB16: 0.1253 | AC16: 0.1219 | AD16: 0.119 | AE16: 0.1161 | AF16: 0.1136 | AG16: 0.1115 | AH16: 0.1092 | AI16: 0.1073 | AJ16: 0.1057 | AK16: 0.1039 | AL16: 0.1024 | AM16: 0.1012 | AN16: 0.0996 | AO16: 0.0986 | AP16: 0.0981 | AQ16: 0.0969 | AR16: 0.0973 | AS16: 0.0961 | AT16: 0.0951 | AU16: 0.0946 | AV16: 0.0939 | AW16: 0.0948 | AX16: 0.0939 | AY16: 0.093 | AZ16: 0.0926 | BA16: 0.0922 | BB16: 0.092 | BC16: 0.0917 | BD16: 0.0911 | BE16: 0.0908 | BF16: 0.0905 | BG16: 1
A17: Quarterly Redemption Rate | B17: 0.0375 | C17: 0.0281 | D17: 0.0324 | E17: 0.042 | F17: 0.0318 | G17: 0.0383 | H17: 0.0478 | I17: 0.1356 | J17: 0.1047 | K17: 0.076 | L17: 0.0683 | M17: 0.0668 | N17: 0.0396 | O17: 0.0251 | P17: 0.0126 | Q17: 0.0086 | R17: 0.0109 | S17: 0.0106 | T17: 0.0089 | U17: 0.0102 | V17: 0.013 | W17: 0.0065 | X17: 0.0053 | Y17: 0.0071 | Z17: 0.0072 | AA17: 0.0067 | AB17: 0.0099 | AC17: 0.006 | AD17: 0.0076 | AE17: 0.0074 | AF17: 0.0087 | AG17: 0.0112 | AH17: 0.0074 | AI17: 0.0103 | AJ17: 0.0125 | AK17: 0.0106 | AL17: 0.0112 | AM17: 0.0137 | AN17: 0.0099 | AO17: 0.015 | AP17: 0.0195 | AQ17: 0.0123 | AR17: 0.0296 | AS17: 0.0107 | AT17: 0.0122 | AU17: 0.0184 | AV17: 0.0155 | AW17: 0.0363 | AX17: 0.0122 | AY17: 0.0124 | AZ17: 0.019 | BA17: 0.0176 | BB17: 0.0211 | BC17: 0.0205 | BD17: 0.0144 | BE17: 0.0186 | BF17: 0.0199 | BG17: 1
A18: Further Advances released in the quarter | B18: 4922 | C18: 3297 | D18: 4178 | E18: 4130 | F18: 5348 | G18: 2870 | H18: 2992 | I18: 2704 | J18: 3834 | K18: 3325 | L18: 1991 | M18: 2398 | N18: 512 | O18: 229 | P18: 382 | Q18: 473 | R18: 854 | S18: 517 | T18: 588 | U18: 212 | V18: 182 | W18: 75 | X18: 271 | Y18: 44 | Z18: 0 | AA18: 405 | AB18: 0 | AC18: 0 | AD18: 53 | AE18: 0 | AF18: 11 | AG18: 10 | AH18: 0 | AI18: 422 | AJ18: 38 | AK18: 0 | AL18: 77 | AM18: 377 | AN18: 219 | AO18: 90 | AP18: 61 | AQ18: 254 | AR18: 0 | AS18: 32 | AT18: 0 | AU18: 272 | AV18: 294 | AW18: 0 | AX18: 351 | AY18: 191 | AZ18: 585 | BA18: 321 | BB18: 491 | BC18: 0 | BD18: 0 | BE18: 0 | BF18: 0 | BG18: 0
A19: First Loss Fund Balance | B19: 12320 | C19: 12320 | D19: 12320 | E19: 12320 | F19: 12320 | G19: 12320 | H19: 12320 | I19: 12320 | J19: 12320 | K19: 12320 | L19: 12320 | M19: 12320 | N19: 12320 | O19: 12320 | P19: 12320 | Q19: 12320 | R19: 12320 | S19: 12320 | T19: 12320 | U19: 12320 | V19: 12320 | W19: 12320 | X19: 12320 | Y19: 12320 | Z19: 12320 | AA19: 12320 | AB19: 12320 | AC19: 12320 | AD19: 12320 | AE19: 12320 | AF19: 12320 | AG19: 12320 | AH19: 12320 | AI19: 12320 | AJ19: 12320 | AK19: 12320 | AL19: 12320 | AM19: 12320 | AN19: 12320 | AO19: 12320 | AP19: 12320 | AQ19: 12320 | AR19: 12320 | AS19: 12320 | AT19: 12320 | AU19: 12320 | AV19: 12320 | AW19: 12320 | AX19: 12320 | AY19: 12320 | AZ19: 12320 | BA19: 12320 | BB19: 12320 | BC19: 12320 | BD19: 12320 | BE19: 12320 | BF19: 12320 | BG19: 0
A20: First Loss Fund as a % of the Mortgages | B20: =+B19/B6 -> 0.01810784752 | C20: 0.01851465017 | D20: 0.01899431866 | E20: 0.01967934803 | F20: 0.02012591767 | G20: 0.02081597964 | H20: 0.02173456661 | I20: 0.0249837261 | J20: 0.02764780467 | K20: 0.02966630226 | L20: 0.03166614832 | M20: 0.03370374626 | N20: 0.03503543356 | O20: 0.03590235259 | P20: 0.03631561571 | Q20: 0.03657674883 | R20: 0.03687982326 | S20: 0.03721222446 | T20: 0.03746571218 | U20: 0.03781600304 | V20: 0.03828928926 | W20: 0.0385268484 | X20: 0.03869334581 | Y20: 0.03896181931 | Z20: 0.03924141753 | AA20: =+AA19/AA6 -> 0.03945354281 | AB20: 0.03984579161 | AC20: 0.04008368119 | AD20: 0.04038152676 | AE20: 0.04068248837 | AF20: 0.04103889701 | AG20: =+AG19/AG6 -> 0.04150160347 | AH20: 0.04179685777 | AI20: 0.04217199465 | AJ20: 0.04270008734 | AK20: 0.04315659679 | AL20: 0.04363436482 | AM20: =+AM19/AM6 -> 0.04418267126 | AN20: 0.04459013023 | AO20: =+AO19/AO6 -> 0.04525241122 | AP20: 0.04613962001 | AQ20: =+AQ19/AQ6 -> 0.04667001361 | AR20: 0.04809593346 | AS20: =+AS19/AS6 -> 0.04860848 | AT20: 0.04920708749 | AU20: =+AU19/AU6 -> 0.05007195696 | AV20: 0.05079841375 | AW20: =+AW19/AW6 -> 0.05271234478 | AX20: 0.05328286361 | AY20: =+AY19/AY6 -> 0.05390658479 | AZ20: 0.05480596067 | BA20: =+BA19/BA6 -> 0.05570490253 | BB20: 0.05677467326 | BC20: =+BC19/BC6 -> 0.05796248741 | BD20: 0.05881183483 | BE20: =+BE19/BE6 -> 0.05992879981 | BF20: 0.06114865213 | BG20: 0
A21: Opening PDL Balance | B21: 0 | C21: 0 | D21: 0 | E21: 0 | F21: 0 | G21: 0 | H21: 0 | I21: 0 | J21: 0 | K21: 0 | L21: 0 | M21: 0 | N21: 0 | O21: 0 | P21: 0 | Q21: 0 | R21: 0 | S21: 0 | T21: 0 | U21: 0 | V21: 0 | W21: 0 | X21: 0 | Y21: 0 | Z21: 0 | AA21: 0 | AB21: 0 | AC21: 0 | AD21: 0 | AE21: 0 | AF21: 0 | AG21: 0 | AH21: 0 | AI21: 0 | AJ21: 0 | AK21: 0 | AL21: 0 | AM21: 0 | AN21: 0 | AO21: 0 | AP21: 0 | AQ21: 0 | AR21: 0 | AS21: 0 | AT21: 0 | AU21: 0 | AV21: 0 | AW21: 0 | AX21: 0 | AY21: 0 | AZ21: 0 | BA21: 0 | BB21: 0 | BC21: 0 | BD21: 0 | BE21: 0 | BF21: 0 | BG21: 0
A22: Quarterly Losses | B22: 0 | C22: 0 | D22: 0 | E22: 0 | F22: =SUM(F91+F124) -> 1 | G22: 69 | H22: 0 | I22: 143 | J22: 91 | K22: 28 | L22: =SUM(L91+L124) -> 2 | M22: 38 | N22: 133 | O22: 62 | P22: 334 | Q22: 502 | R22: =SUM(R91+R124) -> 70 | S22: 173 | T22: 332 | U22: 840 | V22: 60 | W22: 165 | X22: 157 | Y22: -1018 | Z22: =SUM(Z91+Z124) -> -18 | AA22: 120 | AB22: 81 | AC22: 20 | AD22: 439 | AE22: 196 | AF22: =SUM(AF91+AF124) -> 9 | AG22: 23 | AH22: -60 | AI22: 301 | AJ22: -32 | AK22: 277 | AL22: =SUM(AL91+AL124) -> 45 | AM22: 28 | AN22: =SUM(AN91+AN124) -> -8 | AO22: 140 | AP22: =SUM(AP91+AP124) -> 50 | AQ22: 236 | AR22: =SUM(AR91+AR124) -> 236 | AS22: 36 | AT22: =SUM(AT91+AT124) -> 12 | AU22: 67 | AV22: =SUM(AV91+AV124) -> 25 | AW22: -18 | AX22: =SUM(AX91+AX124) -> -34 | AY22: -34 | AZ22: =SUM(AZ91+AZ124) -> 22 | BA22: 52 | BB22: =SUM(BB91+BB124) -> 18 | BC22: =SUM(BC91+BC124) -> -1 | BD22: =SUM(BD91+BD124) -> -1 | BE22: 109 | BF22: =SUM(BF91+BF124) -> 38 | BG22: 171
A23: Quarterly Loss Rate (annualised) | B23: 0 | C23: =1-(1-C22/C6)^4 -> 0 | D23: 0 | E23: 0 | F23: 6.534372843e-06 | G23: 0.0004662504683 | H23: 0 | I23: 0.001159454245 | J23: =1-(1-J22/J6)^4 -> 0.0008166167634 | K23: 0.0002696663826 | L23: 2.056227542e-05 | M23: 0.0004157606038 | N23: 0.001512035621 | O23: 0.0007225138527 | P23: 0.003932309978 | Q23: =1-(1-Q22/Q6)^4 -> 0.00594822081 | R23: 0.000837914385 | S23: 0.002088529424 | T23: 0.004032399857 | U23: 0.01027363613 | V23: 0.0007456866363 | W23: 0.002062341416 | X23: 0.001970897274 | Y23: 0 | Z23: 0 | AA23: 0.001536265183 | AB23: =1-(1-AB22/AB6)^4 -> 0.001047480864 | AC23: 0.0002602582399 | AD23: 0.005743267626 | AE23: 0.002586373334 | AF23: 0.0001199134623 | AG23: 0.0003098785556 | AH23: 0 | AI23: 0.004114988812 | AJ23: 0 | AK23: 0.00387564583 | AL23: =1-(1-AL22/AL6)^4 -> 0.000637362677 | AM23: 0.0004016001527 | AN23: 0 | AO23: 0.00205534172 | AP23: 0.0007488094452 | AQ23: =1-(1-AQ22/AQ6)^4 -> 0.003571221434 | AR23: 0.003680182987 | AS23: =1-(1-AS22/AS6)^4 -> 0.0005680300281 | AT23: 0.0001917021426 | AU23: =1-(1-AU22/AU6)^4 -> 0.00108878281 | AV23: 0.0004122610369 | AW23: 0 | AX23: 0 | AY23: 0 | AZ23: =1-(1-AZ22/AZ6)^4 -> 0.0003914136828 | BA23: 0.0009401407493 | BB23: 0.0003317587566 | BC23: -1.881912223e-05 | BD23: -1.90948883e-05 | BE23: 0.00211917071 | BF23: =1-(1-BF22/BF6)^4 -> 0.0007542180117 | BG23: 0
A24: PDL Replenishment made during the quarter (-ve = recoveries) | B24: 0 | C24: 0 | D24: 0 | E24: 0 | F24: 1 | G24: 69 | H24: 0 | I24: 143 | J24: 91 | K24: 28 | L24: 2 | M24: 38 | N24: 133 | O24: 62 | P24: 334 | Q24: 502 | R24: 70 | S24: 173 | T24: 332 | U24: 840 | V24: 60 | W24: 165 | X24: 157 | Y24: -1018 | Z24: -18 | AA24: 120 | AB24: 81 | AC24: 20 | AD24: 439 | AE24: 196 | AF24: 9 | AG24: 23 | AH24: -60 | AI24: 301 | AJ24: -32 | AK24: 277 | AL24: 45 | AM24: 28 | AN24: -8 | AO24: 140 | AP24: 50 | AQ24: 236 | AR24: 236 | AS24: 36 | AT24: 12 | AU24: 67 | AV24: 25 | AW24: -18 | AX24: -34 | AY24: -34 | AZ24: 22 | BA24: 52 | BB24: 18 | BC24: -1 | BD24: -1 | BE24: 109 | BF24: 38 | BG24: 171
A25: Outstanding PDL at end of the quarter | B25: =B21+B22-B24 -> 0 | C25: 0 | D25: 0 | E25: 0 | F25: 0 | G25: 0 | H25: 0 | I25: 0 | J25: 0 | K25: 0 | L25: 0 | M25: 0 | N25: 0 | O25: 0 | P25: 0 | Q25: 0 | R25: 0 | S25: 0 | T25: 0 | U25: 0 | V25: 0 | W25: 0 | X25: 0 | Y25: 0 | Z25: 0 | AA25: =AA21+AA22-AA24 -> 0 | AB25: 0 | AC25: 0 | AD25: 0 | AE25: 0 | AF25: 0 | AG25: =AG21+AG22-AG24 -> 0 | AH25: 0 | AI25: 0 | AJ25: 0 | AK25: 0 | AL25: 0 | AM25: =AM21+AM22-AM24 -> 0 | AN25: 0 | AO25: =AO21+AO22-AO24 -> 0 | AP25: 0 | AQ25: =AQ21+AQ22-AQ24 -> 0 | AR25: 0 | AS25: =AS21+AS22-AS24 -> 0 | AT25: 0 | AU25: =AU21+AU22-AU24 -> 0 | AV25: 0 | AW25: =AW21+AW22-AW24 -> 0 | AX25: 0 | AY25: =AY21+AY22-AY24 -> 0 | AZ25: 0 | BA25: =BA21+BA22-BA24 -> 0 | BB25: 0 | BC25: =BC21+BC22-BC24 -> 0 | BD25: 0 | BE25: =BE21+BE22-BE24 -> 0 | BF25: 0 | BG25: =BG21+BG22-BG24 -> 0
A26: Spread Trap repayment in the quarter | B26: N/A | C26: N/A | D26: N/A | E26: N/A | F26: N/A | G26: N/A | H26: N/A | I26: N/A | J26: N/A | K26: N/A | L26: N/A | M26: N/A | N26: N/A | O26: N/A | P26: N/A | Q26: N/A | R26: N/A | S26: N/A | T26: N/A | U26: N/A | V26: N/A | W26: N/A | X26: N/A | Y26: N/A | Z26: N/A | AA26: N/A | AB26: N/A | AC26: N/A | AD26: N/A | AE26: N/A | AF26: N/A | AG26: N/A | AH26: N/A | AI26: N/A | AJ26: N/A | AK26: N/A | AL26: N/A | AM26: N/A | AN26: N/A | AO26: N/A | AP26: N/A | AQ26: N/A | AR26: N/A | AS26: N/A | AT26: N/A | AU26: N/A | AV26: N/A | AW26: N/A | AX26: N/A | AY26: N/A | AZ26: N/A | BA26: N/A | BB26: N/A | BC26: N/A | BD26: N/A | BE26: N/A | BF26: N/A | BG26: N/A
A27: Spread % (WA Funding Rate less WA Interest Rate) | B27: 0.0087 | C27: 0.0087 | D27: 0.0092 | E27: 0.0079 | F27: 0.0065 | G27: 0.0049 | H27: 0.0034 | I27: 0.0078 | J27: 0.0032 | K27: 0.0016 | L27: 0.0062 | M27: 0.0047 | N27: 0.0079 | O27: 0.0059 | P27: 0.0175 | Q27: 0.0196 | R27: 0.0204 | S27: 0.0219 | T27: 0.0197 | U27: 0.0153 | V27: 0.0149 | W27: 0.0145 | X27: 0.0143 | Y27: 0.0134 | Z27: 0.0137 | AA27: 0.0132 | AB27: 0.0124 | AC27: 0.0116 | AD27: 0.0118 | AE27: 0.0131 | AF27: 0.013 | AG27: 0.0128 | AH27: 0.0128 | AI27: 0.0127 | AJ27: 0.0127 | AK27: 0.0127 | AL27: 0.0125 | AM27: 0.0126 | AN27: 0.0126 | AO27: 0.0126 | AP27: 0.0125 | AQ27: 0.0127 | AR27: 0.0126 | AS27: 0.0125 | AT27: 0.0127 | AU27: 0.0125 | AV27: 0.0129 | AW27: 0.0133 | AX27: 0.0136 | AY27: 0.0132 | AZ27: 0.0143 | BA27: 0.013 | BB27: 0.0133 | BC27: 0.0134 | BD27: 0.0128 | BE27: 0.0126 | BF27: 0.013 | BG27: 0
A28: Total Income as a % of the Mortgages | B28: 0.0175 | C28: 0.0153 | D28: 0.0153 | E28: 0.0157 | F28: 0.016 | G28: 0.0171 | H28: 0.0174 | I28: 0.0193 | J28: 0.0203 | K28: 0.0197 | L28: 0.0174 | M28: 0.0187 | N28: 0.018 | O28: 0.016 | P28: 0.0123 | Q28: 0.0115 | R28: 0.008 | S28: 0.0077 | T28: 0.0082 | U28: 0.008 | V28: 0.0076 | W28: 0.0075 | X28: 0.008 | Y28: 0.0076 | Z28: 0.0067 | AA28: 0.0077 | AB28: 0.0079 | AC28: 0.0076 | AD28: 0.0078 | AE28: 0.0069 | AF28: 0.0053 | AG28: 0.0066 | AH28: 0.0066 | AI28: 0.0068 | AJ28: 0.0059 | AK28: 0.0069 | AL28: 0.006 | AM28: 0.006 | AN28: 0.0067 | AO28: 0.0064 | AP28: 0.0062 | AQ28: 0.0063 | AR28: 0.0069 | AS28: 0.006 | AT28: 0.0064 | AU28: 0.0061 | AV28: 0.0061 | AW28: 0.0056 | AX28: 0.0058 | AY28: 0.0064 | AZ28: 0.0064 | BA28: 0.0065 | BB28: 0.0074 | BC28: 0.0068 | BD28: 0.007 | BE28: 0.0071 | BF28: 0.0068 | BG28: 0
A29: Quarterly surplus income to the Issuer | B29: 494 | C29: 1504 | D29: 1783 | E29: 1623 | F29: 1545 | G29: 1493 | H29: 1528 | I29: 1768 | J29: 1272 | K29: 999 | L29: 813 | M29: 867 | N29: 423 | O29: 947 | P29: 792 | Q29: 639 | R29: 501 | S29: 502 | T29: 585 | U29: 194 | V29: 815 | W29: 788 | X29: 840 | Y29: 1922 | Z29: 595 | AA29: 671 | AB29: 747 | AC29: 729 | AD29: 655 | AE29: 710 | AF29: 475 | AG29: 872 | AH29: 943 | AI29: 600 | AJ29: 743 | AK29: 660 | AL29: 598 | AM29: 618 | AN29: 826 | AO29: 572 | AP29: 645 | AQ29: 434 | AR29: 606 | AS29: 521 | AT29: 820 | AU29: 653 | AV29: 739 | AW29: 647 | AX29: 718 | AY29: 694 | AZ29: 630 | BA29: 549 | BB29: 697 | BC29: 515 | BD29: 583 | BE29: 481 | BF29: 502 | BG29: 12802
A30: Surplus Income as a % of the Mortgages | B30: =B29/700000 -> 0.0007057142857 | C30: =C29/B6 -> 0.002210568398 | D30: 0.002679514712 | E30: 0.002502254804 | F30: 0.002467905252 | G30: 0.00243896064 | H30: 0.002581722151 | I30: 0.003119051441 | J30: 0.002579488604 | K30: 0.002241895849 | L30: 0.001957686992 | M30: 0.002228453782 | N30: 0.001157198431 | O30: 0.002693064577 | P30: 0.002308008381 | Q30: 0.001883577796 | R30: 0.001487414867 | S30: 0.001502733058 | T30: 0.001766976567 | U30: 0.000589963325 | V30: 0.002501626825 | W30: 0.002449022722 | X30: 0.002626830573 | Y30: 0.006036413202 | Z30: 0.001881678774 | AA30: 0.002137255776 | AB30: 0.002392191273 | AC30: 0.002357758286 | AD30: 0.002131072336 | AE30: 0.002327182143 | AF30: 0.001568521264 | AG30: 0.002904701152 | AH30: 0.003176624357 | AI30: 0.002035561255 | AJ30: 0.002543327275 | AK30: 0.002287504679 | AL30: 0.00209477637 | AM30: 0.002188801742 | AN30: 0.002962247278 | AO30: 0.002070256047 | AP30: 0.002369140035 | AQ30: 0.001625372978 | AR30: 0.002295619176 | AS30: 0.002033927056 | AT30: 0.003235304675 | AU30: 0.0026081354 | AV30: 0.003003504561 | AW30: 0.002667741371 | AX30: 0.003072034379 | AY30: 0.003001485986 | AZ30: 0.002756586722 | BA30: 0.002442246137 | BB30: 0.003151486775 | BC30: 0.002373291942 | BD30: 0.002742867708 | BE30: 0.002296143876 | BF30: 0.002441904018 | BG30: 0
A31: Losses as a % of the Mortgages | B31: =+B22/700000 -> 0 | C31: =C22/B6 -> 0 | D31: 0 | E31: 0 | F31: 1.597349677e-06 | G31: 0.0001127182077 | H31: 0 | I31: 0.0002522762195 | J31: 0.000184538886 | K31: 6.28359197e-05 | L31: =L22/K6 -> 4.815958159e-06 | M31: 9.767156138e-05 | N31: 0.0003638472607 | O31: 0.0001763146819 | P31: 0.0009733267668 | Q31: 0.001479743433 | R31: 0.0002078224365 | S31: 0.0005178741416 | T31: 0.001002796958 | U31: 0.002554480376 | V31: 0.000184168846 | W31: =W22/V6 -> 0.0005128029811 | X31: =X22/W6 -> 0.0004909671427 | Y31: 0 | Z31: 0 | AA31: =AA22/Z6 -> 0.0003822215993 | AB31: 0.0002593942344 | AC31: 6.468472664e-05 | AD31: 0.001428306497 | AE31: 0.0006424333803 | AF31: 2.971935027e-05 | AG31: 7.661482397e-05 | AH31: 0 | AI31: 0.00102117323 | AJ31: 0 | AK31: =AK22/AJ6 -> 0.0009600587819 | AL31: 0.0001576336734 | AM31: 9.916901095e-05 | AN31: -2.869004627e-05 | AO31: 0.0005067060254 | AP31: 0.0001836542663 | AQ31: 0.0008838433704 | AR31: 0.0008940035074 | AS31: 0.0001405400653 | AT31: 4.734592208e-05 | AU31: 0.0002676034791 | AV31: 0.0001016070555 | AW31: 0 | AX31: 0 | AY31: 0 | AZ31: =AZ22/AY6 -> 9.626175855e-05 | BA31: 0.00023132386 | BB31: 8.138703292e-05 | BC31: -4.608333868e-06 | BD31: -4.704747354e-06 | BE31: 0.0005203319803 | BF31: 0.0001848453241 | BG31: 0
A32: Number of Properties in Possession | B32: 0 | C32: 0 | D32: 0 | E32: 0 | F32: =SUM(F89+F122) -> 0 | G32: 0 | H32: 0 | I32: 0 | J32: =SUM(J89+J122) -> 0 | K32: 0 | L32: 0 | M32: =SUM(M89+M122) -> 0 | N32: 0 | O32: 0 | P32: =SUM(P89+P122) -> 1 | Q32: 1 | R32: 1 | S32: =SUM(S89+S122) -> 0 | T32: 0 | U32: 0 | V32: =SUM(V89+V122) -> 0 | W32: 0 | X32: 0 | Y32: =SUM(Y89+Y122) -> 0 | Z32: 1 | AA32: 0 | AB32: =SUM(AB89+AB122) -> 0 | AC32: 0 | AD32: 0 | AE32: =SUM(AE89+AE122) -> 0 | AF32: 0 | AG32: 0 | AH32: =SUM(AH89+AH122) -> 0 | AI32: 0 | AJ32: 0 | AK32: =SUM(AK89+AK122) -> 0 | AL32: 0 | AM32: 0 | AN32: 0 | AO32: 0 | AP32: 0 | AQ32: 0 | AR32: 0 | AS32: 0 | AT32: =SUM(AT89+AT122) -> 0 | AU32: 0 | AV32: =SUM(AV89+AV122) -> 0 | AW32: 0 | AX32: =SUM(AX89+AX122) -> 0 | AY32: 0 | AZ32: =SUM(AZ89+AZ122) -> 0 | BA32: 0 | BB32: =SUM(BB89+BB122) -> 0 | BC32: 0 | BD32: =SUM(BD89+BD122) -> 0 | BE32: 0 | BF32: =SUM(BF89+BF122) -> 1 | BG32: 0
A33: Appointment of a Receiver of Rent | B33: 8 | C33: 12 | D33: 15 | E33: 22 | F33: 20 | G33: 22 | H33: 29 | I33: 31 | J33: 33 | K33: 32 | L33: 42 | M33: 62 | N33: 70 | O33: 103 | P33: 108 | Q33: 104 | R33: 108 | S33: 104 | T33: 78 | U33: 69 | V33: 66 | W33: 70 | X33: 68 | Y33: 64 | Z33: 69 | AA33: 70 | AB33: 65 | AC33: 66 | AD33: 63 | AE33: 60 | AF33: 58 | AG33: 58 | AH33: 57 | AI33: 55 | AJ33: 61 | AK33: 57 | AL33: 54 | AM33: 52 | AN33: 52 | AO33: 48 | AP33: 46 | AQ33: 42 | AR33: 40 | AS33: 40 | AT33: 37 | AU33: =SUM(AU90+AU123) -> 33 | AV33: 30 | AW33: =SUM(AW90+AW123) -> 28 | AX33: 29 | AY33: =SUM(AY90+AY123) -> 30 | AZ33: 28 | BA33: =SUM(BA90+BA123) -> 27 | BB33: 25 | BC33: =SUM(BC90+BC123) -> 27 | BD33: 30 | BE33: =SUM(BE90+BE123) -> 27 | BF33: 27 | BG33: =SUM(BG90+BG123) -> 0
A34: Average Number of months (Possessions) in Arrears at the Sale Date | B34: 0 | C34: 0 | D34: 0 | E34: 0 | F34: 0 | G34: 0 | H34: 0 | I34: 0 | J34: 0 | K34: 0 | L34: 0 | M34: 0 | N34: 0 | O34: 0 | P34: 0 | Q34: 0 | R34: 0 | S34: 16.4 | T34: 0 | U34: 0 | V34: 0 | W34: 0 | X34: 0 | Y34: 0 | Z34: 0 | AA34: 4.52 | AB34: 0 | AC34: 0 | AD34: 0 | AE34: 0 | AF34: 0 | AG34: 0 | AH34: 0 | AI34: 0 | AJ34: 0 | AK34: 0 | AL34: 0 | AM34: 0 | AN34: 0 | AO34: 0 | AP34: 0 | AQ34: 0 | AR34: 0 | AS34: 0 | AT34: 0 | AU34: 0 | AV34: 0 | AW34: 0 | AX34: 0 | AY34: 0 | AZ34: 0 | BA34: 0 | BB34: 0 | BC34: 0 | BD34: 0 | BE34: 0 | BF34: 0 | BG34: 7.9
A35: Average Number of months (RoR) in Arrears at the Sale Date | B35: 0 | C35: 0 | D35: 9.33 | E35: 10.68 | F35: 3.49 | G35: 12.76 | H35: 0 | I35: 18 | J35: 7.66 | K35: 7.28 | L35: 1 | M35: 5.38 | N35: 13.42 | O35: 8.03 | P35: 22.44 | Q35: 33.46 | R35: 16.76 | S35: 9.1 | T35: 12.07 | U35: 15.65 | V35: 3.18 | W35: 8.84 | X35: 4.84 | Y35: 1.43 | Z35: 0 | AA35: 0.5 | AB35: 2.84 | AC35: 1.85 | AD35: 26.06 | AE35: 4.89 | AF35: 1.84 | AG35: 0 | AH35: 0 | AI35: 5.74 | AJ35: 0 | AK35: 12.93 | AL35: 0.5 | AM35: 3.03 | AN35: 0 | AO35: 10.9 | AP35: 0 | AQ35: 26.43 | AR35: 15.98 | AS35: 15.08 | AT35: 1.33 | AU35: 5.86 | AV35: 0.59 | AW35: 0.06 | AX35: 0.06 | AY35: 0 | AZ35: 0 | BA35: 2.74 | BB35: 9.64 | BC35: 0 | BD35: 0 | BE35: 1.01 | BF35: 1.31 | BG35: 0
A36: Arrears excluding Receiver of Rent and Possession Cases
A37: Performing Loans | B37: 0.9922 | C37: 0.9943 | D37: 0.992 | E37: 0.9933 | F37: 0.9931 | G37: 0.9955 | H37: 0.9926 | I37: 0.9839 | J37: 0.9916 | K37: 0.9811 | L37: 0.9825 | M37: 0.9893 | N37: 0.9782 | O37: 0.9792 | P37: 0.9857 | Q37: 0.9874 | R37: 0.9889 | S37: 0.9871 | T37: 0.9891 | U37: 0.9911 | V37: 0.991 | W37: 0.9882 | X37: 0.9886 | Y37: 0.9879 | Z37: 0.9926 | AA37: 0.9915 | AB37: 0.994 | AC37: 0.9925 | AD37: 0.9931 | AE37: 0.9922 | AF37: 0.9969 | AG37: 0.9985 | AH37: 0.9988 | AI37: 0.9973 | AJ37: 0.9974 | AK37: 0.9986 | AL37: 0.996099432 | AM37: 1 | AN37: 1 | AO37: 0.998998147 | AP37: 1 | AQ37: 1 | AR37: 0.9995989598 | AS37: 0.9988162377 | AT37: 0.9992558533 | AU37: 0.9985944555 | AV37: 0.9981327701 | AW37: 1 | AX37: 0.9990036899 | AY37: 0.9992827481 | AZ37: 1 | BA37: 0.9931513593 | BB37: 0.9988941366 | BC37: 0.9990807204 | BD37: 0.9973761819 | BE37: 0.9906223235 | BF37: 0.9938881094 | BG37: 0
A38: >1 to 2 months arrears | B38: 0.0048 | C38: 0.0036 | D38: 0.0038 | E38: 0.0041 | F38: 0.0047 | G38: 0.0032 | H38: 0.0053 | I38: 0.015 | J38: 0.0075 | K38: 0.0138 | L38: 0.0077 | M38: 0.0068 | N38: 0.0152 | O38: 0.0111 | P38: 0.0111 | Q38: 0.0105 | R38: 0.0089 | S38: 0.0086 | T38: 0.0084 | U38: 0.0064 | V38: 0.0066 | W38: 0.0092 | X38: 0.0099 | Y38: 0.0089 | Z38: 0.0062 | AA38: 0.0073 | AB38: 0.0044 | AC38: 0.0058 | AD38: 0.0055 | AE38: 0.0073 | AF38: 0.0031 | AG38: 0.0015 | AH38: 0.0012 | AI38: 0.0017 | AJ38: 0.0026 | AK38: 0.0006 | AL38: 0.003221793501 | AM38: 0 | AN38: 0 | AO38: 0 | AP38: 0 | AQ38: 0 | AR38: 0 | AS38: 0.001183762295 | AT38: 0.0007441467424 | AU38: 0.001405544451 | AV38: 0.001208286982 | AW38: 0 | AX38: 0.0007655532888 | AY38: 0.0004039792371 | AZ38: 0 | BA38: 0.003748908092 | BB38: 0 | BC38: 0.0009192795598 | BD38: 0.001475211339 | BE38: 0.004807854355 | BF38: 0.003381248357 | BG38: 0
A39: >2 to 3 months arrears | B39: 0.0018 | C39: 0.0008 | D39: 0.0025 | E39: 0.0018 | F39: 0.0007 | G39: 0.0007 | H39: 0.0017 | I39: 0.0007 | J39: 0.0009 | K39: 0.0045 | L39: 0.0098 | M39: 0.0032 | N39: 0.004 | O39: 0.0051 | P39: 0.0009 | Q39: 0.0006 | R39: 0.0007 | S39: 0.0031 | T39: 0.0012 | U39: 0 | V39: 0.0012 | W39: 0.0011 | X39: 0 | Y39: 0.0013 | Z39: 0 | AA39: 0 | AB39: 0.0003 | AC39: 0.0004 | AD39: 0.001 | AE39: 0.0005 | AF39: 0 | AG39: 0 | AH39: 0 | AI39: 0.001 | AJ39: 0 | AK39: 0 | AL39: 0.0006787744708 | AM39: 0 | AN39: 0 | AO39: 0.001001853015 | AP39: 0 | AQ39: 0 | AR39: 0.0004010402326 | AS39: 0 | AT39: 0 | AU39: 0 | AV39: 0.0006589428853 | AW39: 0 | AX39: 0.0002307568564 | AY39: 0.0003132726155 | AZ39: 0 | BA39: 0.003099732604 | BB39: 0.001105863353 | BC39: 0 | BD39: 0 | BE39: 0.003401359374 | BF39: 0.001535271957 | BG39: 0
A40: >3 months arrears | B40: 0.0012 | C40: 0.0013 | D40: 0.0017 | E40: 0.0008 | F40: 0.0015 | G40: 0.0006 | H40: 0.0004 | I40: 0.0004 | J40: 0 | K40: 0.0006 | L40: 0 | M40: 0.0007 | N40: 0.0026 | O40: 0.0046 | P40: 0.0023 | Q40: 0.0015 | R40: 0.0015 | S40: 0.0012 | T40: 0.0013 | U40: 0.0025 | V40: 0.0012 | W40: 0.0015 | X40: 0.0015 | Y40: 0.0019 | Z40: 0.0012 | AA40: 0.0012 | AB40: 0.0013 | AC40: 0.0013 | AD40: 0.0004 | AE40: 0 | AF40: 0 | AG40: 0 | AH40: 0 | AI40: 0 | AJ40: 0 | AK40: 0.0008 | AL40: 0 | AM40: 0 | AN40: 0 | AO40: 0 | AP40: 0 | AQ40: 0 | AR40: 0 | AS40: 0 | AT40: 0 | AU40: 0 | AV40: 0 | AW40: 0 | AX40: 0 | AY40: 0 | AZ40: 0 | BA40: 0 | BB40: 0 | BC40: 0 | BD40: 0.001148606778 | BE40: 0.001168462772 | BF40: 0.00119537027 | BG40: 0
A41: Total | B41: =SUM(B37:B40) -> 1 | C41: 1 | D41: 1 | E41: 1 | F41: 1 | G41: 1 | H41: 1 | I41: 1 | J41: 1 | K41: 1 | L41: 1 | M41: 1 | N41: 1 | O41: 1 | P41: 1 | Q41: 1 | R41: 1 | S41: 1 | T41: 1 | U41: 1 | V41: 1 | W41: 1 | X41: 1 | Y41: 1 | Z41: 1 | AA41: =SUM(AA37:AA40) -> 1 | AB41: 1 | AC41: 1 | AD41: 1 | AE41: 1 | AF41: 1 | AG41: =SUM(AG37:AG40) -> 1 | AH41: 1 | AI41: 1 | AJ41: 1 | AK41: 1 | AL41: 1 | AM41: 1 | AN41: 1 | AO41: 1 | AP41: 1 | AQ41: 1 | AR41: 1 | AS41: 1 | AT41: 1 | AU41: 1 | AV41: 1 | AW41: 1 | AX41: 1 | AY41: 1 | AZ41: 1 | BA41: 1 | BB41: 1 | BC41: 1 | BD41: 1 | BE41: 1 | BF41: 1 | BG41: =SUM(BG37:BG40) -> 0
A42: Total Value of Arrears (£000's) | B42: 85 | C42: 117 | D42: 79 | E42: 200 | F42: 238 | G42: 167 | H42: 242 | I42: 315 | J42: 328 | K42: 394 | L42: 495 | M42: 407 | N42: 567 | O42: 625 | P42: 535 | Q42: 391 | R42: 389 | S42: 376 | T42: 343 | U42: 272 | V42: 263 | W42: 271 | X42: 264 | Y42: 274 | Z42: 296 | AA42: 311 | AB42: 331 | AC42: 354 | AD42: 240 | AE42: 245 | AF42: 252 | AG42: 261 | AH42: 268 | AI42: 259 | AJ42: 265 | AK42: 206 | AL42: 212.5975884 | AM42: 208.5355989 | AN42: 217.8455795 | AO42: 208.4702711 | AP42: 217.8103711 | AQ42: 168.2665312 | AR42: 152.4641319 | AS42: 163.7721495 | AT42: 115.5341487 | AU42: 27.92769125 | AV42: 5.95567036 | AW42: 3.395809911 | AX42: 3.050960436 | AY42: 5.023929529 | AZ42: 6.495239807 | BA42: 13.30851042 | BB42: 5.69975026 | BC42: 7.149100191 | BD42: 12.40408141 | BE42: 18.22731089 | BF42: 20.64735905 | BG42: 0
A43: Total Value of Arrears as a % of the Notes Issued (£700,000,000) | B43: =+B42/700000 -> 0.0001214285714 | C43: =+C42/700000 -> 0.0001671428571 | D43: 0.0001128571429 | E43: 0.0002857142857 | F43: 0.00034 | G43: 0.0002385714286 | H43: 0.0003457142857 | I43: 0.00045 | J43: 0.0004685714286 | K43: 0.0005628571429 | L43: 0.0007071428571 | M43: 0.0005814285714 | N43: 0.00081 | O43: 0.0008928571429 | P43: 0.0007642857143 | Q43: 0.0005585714286 | R43: 0.0005557142857 | S43: 0.0005371428571 | T43: 0.00049 | U43: 0.0003885714286 | V43: 0.0003757142857 | W43: 0.0003871428571 | X43: 0.0003771428571 | Y43: 0.0003914285714 | Z43: 0.0004228571429 | AA43: =+AA42/700000 -> 0.0004442857143 | AB43: 0.0004728571429 | AC43: 0.0005057142857 | AD43: 0.0003428571429 | AE43: 0.00035 | AF43: 0.00036 | AG43: =+AG42/700000 -> 0.0003728571429 | AH43: 0.0003828571429 | AI43: 0.00037 | AJ43: 0.0003785714286 | AK43: 0.0002942857143 | AL43: 0.0003037108406 | AM43: 0.0002979079985 | AN43: =+AN42/700000 -> 0.0003112079707 | AO43: 0.000297814673 | AP43: =+AP42/700000 -> 0.000311157673 | AQ43: 0.0002403807588 | AR43: =+AR42/700000 -> 0.0002178059027 | AS43: 0.0002339602136 | AT43: =+AT42/700000 -> 0.0001650487838 | AU43: 3.989670179e-05 | AV43: =+AV42/700000 -> 8.508100514e-06 | AW43: 4.851157015e-06 | AX43: =+AX42/700000 -> 4.358514909e-06 | AY43: 7.177042185e-06 | AZ43: =+AZ42/700000 -> 9.27891401e-06 | BA43: 1.901215775e-05 | BB43: =+BB42/700000 -> 8.142500372e-06 | BC43: 1.021300027e-05 | BD43: =+BD42/700000 -> 1.772011631e-05 | BE43: 2.603901555e-05 | BF43: =+BF42/700000 -> 2.949622721e-05 | BG43: 0
A45: Underlying Assets - Overall | B45: 2005-10-31 | C45: 2006-01-31 | D45: 2006-04-30 | E45: 2006-07-31 | F45: 2006-10-31 | G45: 2007-01-31 | H45: 2007-04-30 | I45: 2007-07-31 | J45: 2007-10-31 | K45: 2008-01-31 | L45: 2008-04-30 | M45: 2008-07-31 | N45: 2008-10-31 | O45: 2009-01-30 | P45: 2009-04-30 | Q45: 2009-07-31 | R45: 2009-10-30 | S45: 2010-01-29 | T45: 2010-04-30 | U45: 2010-07-30 | V45: 2010-10-29 | W45: 2011-01-31 | X45: 2011-04-28 | Y45: 2011-07-29 | Z45: 2011-10-31 | AA45: 2012-01-31 | AB45: 2012-04-30 | AC45: 2012-07-31 | AD45: 2012-10-31 | AE45: 2013-01-31 | AF45: 2013-04-30 | AG45: 2013-07-31 | AH45: 2013-10-31 | AI45: 2014-01-31 | AJ45: 2014-04-30 | AK45: 2014-07-31 | AL45: 2014-10-31 | AM45: 2015-01-30 | AN45: 2015-04-30 | AO45: 2015-07-31 | AP45: =+AP5 -> 2015-10-30 | AQ45: 2016-01-29 | AR45: 2016-04-29 | AS45: 2016-07-29 | AT45: 2016-10-31 | AU45: 2017-01-31 | AV45: =+AV5 -> 2017-04-28 | AW45: 2017-07-31 | AX45: =+AX5 -> 2017-10-31 | AY45: 2018-01-31 | AZ45: =+AZ5 -> 2018-04-30 | BA45: 2018-07-31 | BB45: =+BB5 -> 2018-10-31 | BC45: 2019-01-31 | BD45: =+BD5 -> 2019-04-30 | BE45: 2019-07-31 | BF45: =+BF5 -> 2019-10-31 | BG45: 2020-01-31
A46: Weighted Average LTV | B46: 0.781 | C46: 0.7814 | D46: 0.7829 | E46: 0.7821 | F46: 0.7821 | G46: 0.7822 | H46: 0.7826 | I46: 0.7812 | J46: 0.7801 | K46: 0.7805 | L46: 0.7826 | M46: 0.7842 | N46: 0.7823 | O46: 0.7817 | P46: 0.7809 | Q46: 0.7801 | R46: 0.78 | S46: 0.7801 | T46: 0.7795 | U46: 0.7796 | V46: 0.7796 | W46: 0.7791 | X46: 0.7785 | Y46: 0.7786 | Z46: 0.779 | AA46: 0.779 | AB46: 0.7792 | AC46: 0.7793 | AD46: 0.7791 | AE46: 0.779 | AF46: 0.7786 | AG46: 0.7787 | AH46: 0.7789 | AI46: 0.7784 | AJ46: 0.7776 | AK46: 0.7774 | AL46: 0.7771478347 | AM46: 0.7766628356 | AN46: 0.7760947395 | AO46: 0.7752489421 | AP46: 0.7763275637 | AQ46: 0.7757612555 | AR46: 0.7754230415 | AS46: 0.7761465914 | AT46: 0.7761288466 | AU46: 0.775610226 | AV46: 0.7740704809 | AW46: 0.7742804379 | AX46: 0.7727420196 | AY46: 0.7728994573 | AZ46: 0.7694044947 | BA46: 0.7682772212 | BB46: 0.769277828 | BC46: 0.7692933647 | BD46: 0.7679751428 | BE46: 0.7677322514 | BF46: 0.7682397037 | BG46: 0
A47: Weighted Average Nationwide Indexed LTV | B47: 0.6688 | C47: 0.6732 | D47: 0.666 | E47: 0.6627 | F47: 0.6624 | G47: 0.6561 | H47: 0.6585 | I47: 0.6494 | J47: 0.6449 | K47: 0.6498 | L47: 0.6719 | M47: 0.6987 | N47: 0.7538 | O47: 0.7825 | P47: 0.8177 | Q47: 0.7982 | R47: 0.7719 | S47: 0.7635 | T47: 0.7647 | U47: 0.7428 | V47: 0.7435 | W47: 0.7636 | X47: 0.7647 | Y47: 0.7492 | Z47: 0.7538 | AA47: 0.7626 | AB47: 0.7738 | AC47: 0.7656 | AD47: 0.7643 | AE47: 0.7724 | AF47: 0.772 | AG47: 0.7557 | AH47: 0.7387 | AI47: 0.7249 | AJ47: 0.7208 | AK47: 0.6901 | AL47: 0.6831975442 | AM47: 0.6866573347 | AN47: 0.6864836695 | AO47: 0.6674873345 | AP47: 0.6671143176 | AQ47: 0.6662620416 | AR47: 0.662083363 | AS47: 0.6442817897 | AT47: 0.6388289499 | AU47: 0.641216725 | AV47: 0.6410068908 | AW47: 0.6318654487 | AX47: 0.6295421464 | AY47: 0.6311395748 | AZ47: 0.628591862 | BA47: 0.6219621246 | BB47: 0.6194094746 | BC47: 0.6278670242 | BD47: 0.6319087939 | BE47: 0.6240377723 | BF47: 0.630835835 | BG47: 0
A48: Weighted Average Halifax Indexed LTV | B48: 0.6728 | C48: 0.6608 | D48: 0.6542 | E48: 0.653 | F48: 0.6504 | G48: 0.6483 | H48: 0.6456 | I48: 0.6315 | J48: 0.6286 | K48: 0.6338 | L48: 0.6625 | M48: 0.6862 | N48: 0.7395 | O48: 0.7948 | P48: 0.8159 | Q48: 0.82 | R48: 0.7992 | S48: 0.7856 | T48: 0.7884 | U48: 0.7716 | V48: 0.7833 | W48: 0.791 | X48: 0.8096 | Y48: 0.8038 | Z48: 0.7959 | AA48: 0.8057 | AB48: 0.8067 | AC48: 0.8082 | AD48: 0.8108 | AE48: 0.814 | AF48: 0.7986 | AG48: 0.7756 | AH48: 0.7634 | AI48: 0.7567 | AJ48: 0.7473 | AK48: 0.721 | AL48: 0.7011640952 | AM48: 0.7093614465 | AN48: 0.6904273725 | AO48: 0.6583674695 | AP48: 0.6541514136 | AQ48: 0.6579865562 | AR48: 0.6350892389 | AS48: 0.6158674509 | AT48: n/a | AU48: n/a | AV48: n/a | AW48: n/a | AX48: n/a | AY48: n/a | AZ48: n/a | BA48: n/a | BB48: n/a | BC48: n/a | BD48: n/a | BE48: n/a | BF48: n/a | BG48: n/a
A49: % of Variable Rate Mortgages | B49: 0.031 | C49: 0.0302 | D49: 0.0295 | E49: 0.016 | F49: 0.019 | G49: 0.0244 | H49: 0.03 | I49: 0.0406 | J49: 0.0594 | K49: 0.0601 | L49: 0.0616 | M49: 0.059 | N49: 0.0595 | O49: 0.0596 | P49: 0.051 | Q49: 0.0511 | R49: 0.0511 | S49: 0.051 | T49: 0.0507 | U49: 0.0509 | V49: 0.0511 | W49: 0.0506 | X49: 0.0502 | Y49: 0.0495 | Z49: 0.0491 | AA49: 0.049 | AB49: 0.0483 | AC49: 0.0484 | AD49: 0.0482 | AE49: 0.0478 | AF49: 0.0476 | AG49: 0.0477 | AH49: 0.0471 | AI49: 0.047 | AJ49: 0.0472 | AK49: 0.0474 | AL49: 0.0477605626 | AM49: 0.04817829642 | AN49: 0.0483517787 | AO49: 0.04896007637 | AP49: 0.04799884259 | AQ49: 0.04838003215 | AR49: 0.04830055593 | AS49: 0.04647397677 | AT49: 0.04683265816 | AU49: 0.04519530475 | AV49: 0.04537428192 | AW49: 0.04589003685 | AX49: 0.04570826358 | AY49: 0.0461439352 | AZ49: 0.04482137107 | BA49: 0.04402145484 | BB49: 0.04470889099 | BC49: 0.0450832698 | BD49: 0.04531769582 | BE49: 0.04444527361 | BF49: 0.04462919193 | BG49: 0
A50: % of Fixed Rate Mortgages | B50: 0.507 | C50: 0.5125 | D50: 0.5134 | E50: 0.5038 | F50: 0.5272 | G50: 0.5475 | H50: 0.539 | I50: 0.3461 | J50: 0.398 | K50: 0.4058 | L50: 0.4691 | M50: 0.4576 | N50: 0.3818 | O50: 0.342 | P50: 0.2981 | Q50: 0.2579 | R50: 0.2242 | S50: 0.213 | T50: 0.1398 | U50: 0.0781 | V50: 0.0742 | W50: 0.0553 | X50: 0.0442 | Y50: 0.0209 | Z50: 0.0165 | AA50: 0.0156 | AB50: 0.0133 | AC50: 0.0132 | AD50: 0.0133 | AE50: 0.0134 | AF50: 0.0104 | AG50: 0 | AH50: 0 | AI50: 0 | AJ50: 0 | AK50: 0 | AL50: 0 | AM50: 0 | AN50: 0 | AO50: 0 | AP50: 0 | AQ50: 0 | AR50: 0 | AS50: 0 | AT50: 0 | AU50: 0 | AV50: 0 | AW50: 0 | AX50: 0 | AY50: 0 | AZ50: 0 | BA50: 0 | BB50: 0.01331046108 | BC50: 0.01358893656 | BD50: 0.01378806066 | BE50: 0.01404992599 | BF50: 0.01433591261 | BG50: 0
A51: % of Base Rate Mortgages | B51: 0.0019 | C51: 0.0019 | D51: 0.002 | E51: 0.0032 | F51: 0 | G51: 0 | H51: 0 | I51: 0 | J51: 0 | K51: 0 | L51: 0 | M51: 0 | N51: 0 | O51: 0 | P51: 0 | Q51: 0 | R51: 0 | S51: 0 | T51: 0 | U51: 0 | V51: 0 | W51: 0 | X51: 0 | Y51: 0 | Z51: 0 | AA51: 0 | AB51: 0 | AC51: 0 | AD51: 0 | AE51: 0 | AF51: 0 | AG51: 0 | AH51: 0 | AI51: 0 | AJ51: 0 | AK51: 0 | AL51: 0 | AM51: 0 | AN51: 0 | AO51: 0 | AP51: 0 | AQ51: 0 | AR51: 0 | AS51: 0 | AT51: 0 | AU51: 0 | AV51: 0 | AW51: 0 | AX51: 0 | AY51: 0 | AZ51: 0 | BA51: 0 | BB51: 0 | BC51: 0 | BD51: 0 | BE51: 0 | BF51: 0 | BG51: 0
A52: % of Libor Linked Mortgages | B52: 0.4602 | C52: 0.4554 | D52: 0.4551 | E52: 0.477 | F52: 0.4538 | G52: 0.4281 | H52: 0.431 | I52: 0.6133 | J52: 0.5426 | K52: 0.5342 | L52: 0.4693 | M52: 0.4834 | N52: 0.5587 | O52: 0.5984 | P52: 0.6509 | Q52: 0.691 | R52: 0.7248 | S52: 0.7361 | T52: 0.8094 | U52: 0.8709 | V52: 0.8748 | W52: 0.8941 | X52: 0.9056 | Y52: 0.9296 | Z52: 0.9344 | AA52: 0.9354 | AB52: 0.9384 | AC52: 0.9384 | AD52: 0.9385 | AE52: 0.9389 | AF52: 0.9421 | AG52: 0.9523 | AH52: 0.9529 | AI52: 0.953 | AJ52: 0.9528 | AK52: 0.9526 | AL52: 0.9522394374 | AM52: 0.9518217036 | AN52: 0.9516482213 | AO52: 0.9510399236 | AP52: 0.9520011574 | AQ52: 0.9516199678 | AR52: 0.9516994441 | AS52: 0.9535260232 | AT52: 0.9531673418 | AU52: 0.9548046952 | AV52: 0.9546257181 | AW52: 0.9541099631 | AX52: 0.9542917364 | AY52: 0.9538560648 | AZ52: 0.9551786289 | BA52: 0.9559785452 | BB52: 0.9419806479 | BC52: 0.9413277936 | BD52: 0.9408942435 | BE52: 0.9415048004 | BF52: 0.9410348955 | BG52: 0
A53: Weighted Average Loan Size | B53: 108407.92 | C53: 109660.36 | D53: 110459.08 | E53: 109927.62 | F53: 111037.09 | G53: 111944.93 | H53: 112893.57 | I53: 114732.82 | J53: 114846.67 | K53: 115936.81 | L53: 116380.32 | M53: 118144.14 | N53: 118798.51 | O53: 118985.08 | P53: 119327.32 | Q53: 119739.18 | R53: 119477.2 | S53: 119435.09 | T53: 119663.01 | U53: 119643.21 | V53: 119480.51 | W53: 119498.15 | X53: 119519.76 | Y53: 119775.51 | Z53: 120058.8 | AA53: 120519.44 | AB53: 120919.98 | AC53: 120959.26 | AD53: 121019.3 | AE53: 120939.86 | AF53: 120952.2 | AG53: 120820.63 | AH53: 121150.41 | AI53: 121269.19 | AJ53: 121126.69 | AK53: 121219.57 | AL53: 121387.045 | AM53: 121552.9 | AN53: 121876.6328 | AO53: 121976.1138 | AP53: 121924.9481 | AQ53: 122100.4011 | AR53: 121688.6995 | AS53: 122028.7522 | AT53: 122730.6064 | AU53: 122593.8743 | AV53: 122923.0908 | AW53: 121666.498 | AX53: 122208.6702 | AY53: 122150.4587 | AZ53: 122037.4958 | BA53: 121854.244 | BB53: 121840.6325 | BC53: 121805.8823 | BD53: 121650.2013 | BE53: 121284.5343 | BF53: 121371.2239 | BG53: 0
A54: Weighted Average Interest Rate | B54: 0.05717 | C54: 0.05715 | D54: 0.05707 | E54: 0.05724 | F54: 0.05837 | G54: 0.05939 | H54: 0.06098 | I54: 0.06754 | J54: 0.06932 | K54: 0.06739 | L54: 0.06505 | M54: 0.0655 | N54: 0.06796 | O54: 0.04982 | P54: 0.04065 | Q54: 0.03566 | R54: 0.03048 | S54: 0.0305 | T54: 0.0286 | U54: 0.0273 | V54: 0.02722 | W54: 0.02679 | X54: 0.02723 | Y54: 0.02652 | Z54: 0.02716 | AA54: 0.02821 | AB54: 0.02806 | AC54: 0.02664 | AD54: 0.02376 | AE54: 0.02324 | AF54: 0.02308 | AG54: 0.02281 | AH54: 0.02284 | AI54: 0.02286 | AJ54: 0.02288 | AK54: 0.0229 | AL54: 0.02306460283 | AM54: 0.02305191667 | AN54: 0.02315345709 | AO54: 0.02323268072 | AP54: 0.02327496653 | AQ54: 0.02341481883 | AR54: 0.02345085134 | AS54: 0.02338776788 | AT54: 0.021481412 | AU54: 0.02141080539 | AV54: 0.02143142109 | AW54: 0.02128835603 | AX54: 0.0213208657 | AY54: 0.02343955523 | AZ54: 0.02475064269 | BA54: 0.02439237127 | BB54: 0.02624265321 | BC54: 0.02715938034 | BD54: 0.02643644607 | BE54: 0.025649934 | BF54: 0.02559747521 | BG54: 0
A55: Weighted Average Maturity Date (years) | B55: 20.7 | C55: 20.49 | D55: 20.28 | E55: 20.05 | F55: 19.83 | G55: 19.61 | H55: 19.33 | I55: 19.09 | J55: 18.81 | K55: 18.51 | L55: 18.24 | M55: 17.97 | N55: 17.73 | O55: 17.52 | P55: 17.29 | Q55: 17.06 | R55: 16.83 | S55: 16.58 | T55: 16.34 | U55: 16.12 | V55: 15.87 | W55: 15.64 | X55: 15.39 | Y55: 15.16 | Z55: 14.95 | AA55: 14.73 | AB55: 14.53 | AC55: 14.3 | AD55: 14.07 | AE55: 13.84 | AF55: 13.63 | AG55: 13.43 | AH55: 13.21 | AI55: 12.99 | AJ55: 12.76 | AK55: 12.52 | AL55: 12.29923436 | AM55: 12.10556389 | AN55: 11.89623681 | AO55: 11.69857594 | AP55: 11.49512449 | AQ55: 11.31730093 | AR55: 11.1279353 | AS55: 10.91948807 | AT55: 10.73145008 | AU55: 10.51940748 | AV55: 10.32704771 | AW55: 10.09469058 | AX55: 9.862028531 | AY55: 9.637583201 | AZ55: 9.435967264 | BA55: 9.242563342 | BB55: 9.228692017 | BC55: 9.040598848 | BD55: 8.804808945 | BE55: 8.579221844 | BF55: 8.391748371 | BG55: 0
A56: Weighted Average Seasoning (months) | B56: 21.96 | C56: 21.79 | D56: 27.03 | E56: 29.92 | F56: 32.89 | G56: 35.73 | H56: 38.6 | I56: 42.7 | J56: 46.49 | K56: 49.78 | L56: 52.99 | M56: 56.44 | N56: 59.37 | O56: 62.44 | P56: 65.27 | Q56: 68.34 | R56: 71.4 | S56: 74.52 | T56: 77.52 | U56: 80.54 | V56: 83.52 | W56: 86.48 | X56: 89.43 | Y56: 92.35 | Z56: 95.31 | AA56: 98.35 | AB56: 101.25 | AC56: 104.26 | AD56: 107.3 | AE56: 110.29 | AF56: 113.04 | AG56: 115.97 | AH56: 118.92 | AI56: 121.96 | AJ56: 124.94 | AK56: 128.01 | AL56: 131.021574 | AM56: 134.1266318 | AN56: 137.080944 | AO56: 140.0076686 | AP56: 143.0447287 | AQ56: 146.1593145 | AR56: 149.052104 | AS56: 152.0694451 | AT56: 154.8870663 | AU56: 157.9578295 | AV56: 160.9103748 | AW56: 164.147144 | AX56: 167.221613 | AY56: 170.2208112 | AZ56: 173.0801415 | BA56: 175.9140719 | BB56: 178.9415914 | BC56: 181.8297256 | BD56: 184.7576762 | BE56: 187.7579164 | BF56: 190.8032656 | BG56: 0
A57: % of Interest Only Mortgages | B57: 0.8869 | C57: 0.8873 | D57: 0.8908 | E57: 0.8943 | F57: 0.895 | G57: 0.8967 | H57: 0.8982 | I57: 0.8948 | J57: 0.8964 | K57: 0.8969 | L57: 0.8976 | M57: 0.9013 | N57: 0.9058 | O57: 0.9095 | P57: 0.9171 | Q57: 0.9192 | R57: 0.9224 | S57: 0.9256 | T57: 0.9287 | U57: 0.9307 | V57: 0.9341 | W57: 0.9338 | X57: 0.9348 | Y57: 0.9359 | Z57: 0.9373 | AA57: 0.9386 | AB57: 0.9396 | AC57: 0.9408 | AD57: 0.9428 | AE57: 0.9444 | AF57: 0.9456 | AG57: 0.9467 | AH57: 0.9472 | AI57: 0.9487 | AJ57: 0.9497 | AK57: 0.9506 | AL57: 0.9519115734 | AM57: 0.9535243469 | AN57: 0.9544251286 | AO57: 0.9555970517 | AP57: 0.9570869705 | AQ57: 0.95772373 | AR57: 0.9632722133 | AS57: 0.9658490938 | AT57: 0.9672146823 | AU57: 0.9683531472 | AV57: 0.9678053804 | AW57: 0.9688470504 | AX57: 0.9704839966 | AY57: 0.9719419939 | AZ57: 0.972052693 | BA57: 0.9731728747 | BB57: 0.9742253901 | BC57: 0.9748144369 | BD57: 0.9754502178 | BE57: 0.9763518012 | BF57: 0.9770878828 | BG57: 0
A58: % of Repayment Mortgages | B58: 0.1131 | C58: 0.1127 | D58: 0.1092 | E58: 0.1057 | F58: 0.105 | G58: 0.1033 | H58: 0.1018 | I58: 0.1052 | J58: 0.1036 | K58: 0.1031 | L58: 0.1024 | M58: 0.0987 | N58: 0.0942 | O58: 0.0905 | P58: 0.0829 | Q58: 0.0808 | R58: 0.0776 | S58: 0.0744 | T58: 0.0713 | U58: 0.0693 | V58: 0.0659 | W58: 0.0662 | X58: 0.0652 | Y58: 0.0641 | Z58: 0.0627 | AA58: 0.0614 | AB58: 0.0604 | AC58: 0.0592 | AD58: 0.0572 | AE58: 0.0556 | AF58: 0.0544 | AG58: 0.0533 | AH58: 0.0528 | AI58: 0.0513 | AJ58: 0.0503 | AK58: 0.0494 | AL58: 0.04808842658 | AM58: 0.04647565306 | AN58: 0.04557487145 | AO58: 0.04440294827 | AP58: 0.0429130295 | AQ58: 0.04227626999 | AR58: 0.03672778671 | AS58: 0.03415090623 | AT58: 0.0327853177 | AU58: 0.03164685284 | AV58: 0.03219461962 | AW58: 0.03115294964 | AX58: 0.02951600342 | AY58: 0.02805800607 | AZ58: 0.027947307 | BA58: 0.02682712531 | BB58: 0.02577460985 | BC58: 0.02518556311 | BD58: 0.02454978216 | BE58: 0.02364819884 | BF58: 0.02291211719 | BG58: 0
A59: % of Mortgages in London | B59: 0.1774 | C59: 0.1781 | D59: 0.1755 | E59: 0.1752 | F59: 0.1756 | G59: 0.174 | H59: 0.172 | I59: 0.154 | J59: 0.1462 | K59: 0.1445 | L59: 0.1438 | M59: 0.1417 | N59: 0.1357 | O59: 0.1304 | P59: 0.1295 | Q59: 0.1297 | R59: 0.1303 | S59: 0.1297 | T59: 0.1298 | U59: 0.1297 | V59: 0.1277 | W59: 0.1274 | X59: 0.1261 | Y59: 0.1255 | Z59: 0.1249 | AA59: 0.1256 | AB59: 0.1254 | AC59: 0.1246 | AD59: 0.1247 | AE59: 0.1245 | AF59: 0.1214 | AG59: 0.1202 | AH59: 0.1204 | AI59: 0.1212 | AJ59: 0.1209 | AK59: 0.1191 | AL59: 0.1184711995 | AM59: 0.1177925173 | AN59: 0.116984973 | AO59: 0.1183147362 | AP59: 0.115036235 | AQ59: 0.1161579053 | AR59: 0.1153228801 | AS59: 0.1153112148 | AT59: 0.1141096076 | AU59: 0.1098313513 | AV59: 0.1078068206 | AW59: 0.1016013729 | AX59: 0.1025722947 | AY59: 0.1012892399 | AZ59: 0.1027384183 | BA59: 0.1005557216 | BB59: 0.09735667601 | BC59: 0.09731871478 | BD59: 0.09841890202 | BE59: 0.09708604597 | BF59: 0.09557387571 | BG59: 0
A60: % of Mortgages in the South East | B60: 0.2717 | C60: 0.2721 | D60: 0.2715 | E60: 0.2695 | F60: 0.27 | G60: 0.2715 | H60: 0.2778 | I60: 0.2682 | J60: 0.262 | K60: 0.2592 | L60: 0.2567 | M60: 0.2548 | N60: 0.2553 | O60: 0.2541 | P60: 0.2538 | Q60: 0.253 | R60: 0.2493 | S60: 0.2485 | T60: 0.2486 | U60: 0.2502 | V60: 0.2504 | W60: 0.25 | X60: 0.2506 | Y60: 0.2514 | Z60: 0.2506 | AA60: 0.2511 | AB60: 0.2494 | AC60: 0.2489 | AD60: 0.249 | AE60: 0.2496 | AF60: 0.251 | AG60: 0.2514 | AH60: 0.2499 | AI60: 0.2489 | AJ60: 0.2468 | AK60: 0.2471 | AL60: 0.2455874849 | AM60: 0.2419434995 | AN60: 0.2423465394 | AO60: 0.2410327086 | AP60: 0.2399223239 | AQ60: 0.2370267213 | AR60: 0.2398637257 | AS60: 0.2384476461 | AT60: 0.2370085051 | AU60: 0.2379625351 | AV60: 0.235727767 | AW60: 0.237442083 | AX60: 0.234292026 | AY60: 0.2356136831 | AZ60: 0.2365817463 | BA60: 0.2365716612 | BB60: 0.2357801827 | BC60: 0.2319228258 | BD60: 0.2328313549 | BE60: 0.2283479468 | BF60: 0.2255752358 | BG60: 0
A61: % of Owner Occupied Mortgages | B61: 0 | C61: 0 | D61: 0 | E61: 0 | F61: 0 | G61: 0 | H61: 0 | I61: 0 | J61: 0 | K61: 0 | L61: 0 | M61: 0 | N61: 0 | O61: 0 | P61: 0 | Q61: 0 | R61: 0 | S61: 0 | T61: 0 | U61: 0 | V61: 0 | W61: 0 | X61: 0 | Y61: 0 | Z61: 0 | AA61: 0 | AB61: 0 | AC61: 0 | AD61: 0 | AE61: 0 | AF61: 0 | AG61: 0 | AH61: 0 | AI61: 0 | AJ61: 0 | AK61: 0 | AL61: 0 | AM61: 0 | AN61: 0 | AO61: 0 | AP61: 0 | AQ61: 0 | AR61: 0 | AS61: 0 | AT61: 0 | AU61: 0 | AV61: 0 | AW61: 0 | AX61: 0 | AY61: 0 | AZ61: 0 | BA61: 0 | BB61: 0 | BC61: 0 | BD61: 0 | BE61: 0 | BF61: 0 | BG61: 0
A62: % of Investment Home Loans - Professional Landlords | B62: 0.7119 | C62: 0.7128 | D62: 0.7152 | E62: 0.7151 | F62: 0.7156 | G62: 0.7152 | H62: 0.715 | I62: 0.7501 | J62: 0.7633 | K62: 0.7724 | L62: 0.7763 | M62: 0.7858 | N62: 0.7888 | O62: 0.7934 | P62: 0.7932 | Q62: 0.7936 | R62: 0.7936 | S62: 0.7934 | T62: 0.7946 | U62: 0.7943 | V62: 0.7945 | W62: 0.7949 | X62: 0.7962 | Y62: 0.7964 | Z62: 0.798 | AA62: 0.7985 | AB62: 0.7975 | AC62: 0.7981 | AD62: 0.7979 | AE62: 0.7972 | AF62: 0.7976 | AG62: 0.7993 | AH62: 0.7991 | AI62: 0.8017 | AJ62: 0.8051 | AK62: 0.8052 | AL62: 0.8061267474 | AM62: 0.8077616558 | AN62: 0.8098927166 | AO62: 0.8101351517 | AP62: 0.8125562501 | AQ62: 0.8136383353 | AR62: 0.812910893 | AS62: 0.8141602478 | AT62: 0.8131014272 | AU62: 0.8121523417 | AV62: 0.8125134395 | AW62: 0.8107898889 | AX62: 0.812602169 | AY62: 0.8149351317 | AZ62: 0.8161354 | BA62: 0.8168982317 | BB62: 0.818398335 | BC62: 0.8181613485 | BD62: 0.8187974814 | BE62: 0.8212723816 | BF62: 0.823501023 | BG62: 0
A63: % of Investment Home Loans - Emerging Professional Landlords | B63: 0.2881 | C63: 0.2872 | D63: 0.2848 | E63: 0.2849 | F63: 0.2844 | G63: 0.2848 | H63: 0.285 | I63: 0.2499 | J63: 0.2367 | K63: 0.2276 | L63: 0.2237 | M63: 0.2142 | N63: 0.2112 | O63: 0.2066 | P63: 0.2068 | Q63: 0.2064 | R63: 0.2064 | S63: 0.2066 | T63: 0.2054 | U63: 0.2057 | V63: 0.2055 | W63: 0.2051 | X63: 0.2038 | Y63: 0.2036 | Z63: 0.202 | AA63: 0.2015 | AB63: 0.2025 | AC63: 0.2019 | AD63: 0.2021 | AE63: 0.2028 | AF63: 0.2024 | AG63: 0.2007 | AH63: 0.2009 | AI63: 0.1983 | AJ63: 0.1949 | AK63: 0.1948 | AL63: 0.1938732526 | AM63: 0.1922383442 | AN63: 0.1901072834 | AO63: 0.1898648483 | AP63: 0.1874437499 | AQ63: 0.1863616647 | AR63: 0.187089107 | AS63: 0.1858397522 | AT63: 0.1868985728 | AU63: 0.1878476583 | AV63: 0.1874865605 | AW63: 0.1892101111 | AX63: 0.187397831 | AY63: 0.1850648683 | AZ63: 0.1838646 | BA63: 0.1831017683 | BB63: 0.181601665 | BC63: 0.1818386515 | BD63: 0.1812025186 | BE63: 0.1787276184 | BF63: 0.176498977 | BG63: 0
A64: Weighted Average Interest Coverage Ratio (calculated at the origination date) | B64: 1.97 | C64: 1.98 | D64: 1.98 | E64: 1.99 | F64: 1.99 | G64: 2 | H64: 2 | I64: 2.05 | J64: 2.1 | K64: 2.13 | L64: 2.14 | M64: 2.09 | N64: 2 | O64: 2 | P64: 1.99 | Q64: 2 | R64: 2.01 | S64: 2.01 | T64: 2.01 | U64: 2.02 | V64: 2.02 | W64: 2.02 | X64: 2.01 | Y64: 2.02 | Z64: 2.01 | AA64: 2.01 | AB64: 2.01 | AC64: 2 | AD64: 2.01 | AE64: 2 | AF64: 2 | AG64: 1.99 | AH64: 1.99 | AI64: 1.99 | AJ64: 1.99 | AK64: 1.99 | AL64: 1.988532556 | AM64: 1.992659014 | AN64: 1.991915002 | AO64: 1.986076656 | AP64: 1.986680702 | AQ64: 1.991889647 | AR64: 1.988829138 | AS64: 1.991296211 | AT64: 1.98974192 | AU64: 1.997481657 | AV64: 2.003071196 | AW64: 2.006474209 | AX64: 1.988174187 | AY64: 1.990504997 | AZ64: 1.986088922 | BA64: 1.977125762 | BB64: 1.964664983 | BC64: 1.970676878 | BD64: 1.972211151 | BE64: 1.967094298 | BF64: 1.958187659 | BG64: 0
A65: % of Paragon Originated Assets | B65: 0.5885 | C65: 0.5858 | D65: 0.586 | E65: 0.5826 | F65: 0.5834 | G65: 0.5835 | H65: 0.5852 | I65: 0.6352 | J65: 0.6702 | K65: 0.6877 | L65: 0.6927 | M65: 0.6989 | N65: 0.7011 | O65: 0.7089 | P65: 0.708 | Q65: 0.7103 | R65: 0.7133 | S65: 0.7146 | T65: 0.7165 | U65: 0.7184 | V65: 0.7176 | W65: 0.7176 | X65: 0.7187 | Y65: 0.7184 | Z65: 0.7194 | AA65: 0.7201 | AB65: 0.72 | AC65: 0.7201 | AD65: 0.7192 | AE65: 0.7188 | AF65: 0.7187 | AG65: 0.7197 | AH65: 0.7194 | AI65: 0.7205 | AJ65: 0.7221 | AK65: 0.7212 | AL65: 0.7208266918 | AM65: 0.7257420211 | AN65: 0.7270836924 | AO65: 0.7287087193 | AP65: 0.7310926243 | AQ65: 0.7316974651 | AR65: 0.7284118155 | AS65: 0.7291231305 | AT65: 0.7287317848 | AU65: 0.7270173018 | AV65: 0.7278499478 | AW65: 0.7287172235 | AX65: 0.7303118338 | AY65: 0.7305713876 | AZ65: 0.7329542198 | BA65: 0.7315391565 | BB65: 0.7359661193 | BC65: 0.7334783472 | BD65: 0.7346774535 | BE65: 0.7346934272 | BF65: 0.736957222 | BG65: 0
A66: % of Mortgage Trust Originated Assets | B66: 0.4115 | C66: 0.4142 | D66: 0.414 | E66: 0.4174 | F66: 0.4166 | G66: 0.4165 | H66: 0.4148 | I66: 0.3648 | J66: 0.3298 | K66: 0.3123 | L66: 0.3073 | M66: 0.3011 | N66: 0.2989 | O66: 0.2911 | P66: 0.292 | Q66: 0.2897 | R66: 0.2867 | S66: 0.2854 | T66: 0.2835 | U66: 0.2816 | V66: 0.2824 | W66: 0.2824 | X66: 0.2813 | Y66: 0.2816 | Z66: 0.2806 | AA66: 0.2799 | AB66: 0.28 | AC66: 0.2799 | AD66: 0.2808 | AE66: 0.2812 | AF66: 0.2813 | AG66: 0.2803 | AH66: 0.2806 | AI66: 0.2795 | AJ66: 0.2779 | AK66: 0.2788 | AL66: 0.2791733082 | AM66: 0.2742579789 | AN66: 0.2729163076 | AO66: 0.2712912807 | AP66: 0.2689073757 | AQ66: 0.2683025349 | AR66: 0.2715881845 | AS66: 0.2708768695 | AT66: 0.2712682152 | AU66: 0.2729826982 | AV66: 0.2721500522 | AW66: 0.2712827765 | AX66: 0.2696881662 | AY66: 0.2694286124 | AZ66: 0.2670457802 | BA66: 0.2684608435 | BB66: 0.2640338807 | BC66: 0.2665216528 | BD66: 0.2653225465 | BE66: 0.2653065728 | BF66: 0.263042778 | BG66: 0
A68: Underlying Assets - Paragon Originated Assets | B68: 2005-10-31 | C68: 2006-01-31 | D68: 2006-04-30 | E68: 2006-07-31 | F68: 2006-10-31 | G68: 2007-01-31 | H68: 2007-04-30 | I68: 2007-07-31 | J68: 2007-10-31 | K68: 2008-01-31 | L68: 2008-04-30 | M68: 2008-07-31 | N68: 2008-10-31 | O68: 2009-01-30 | P68: 2009-04-30 | Q68: 2009-07-31 | R68: 2009-10-30 | S68: 2010-01-29 | T68: 2010-04-30 | U68: 2010-07-30 | V68: 2010-10-29 | W68: 2011-01-31 | X68: 2011-04-28 | Y68: 2011-07-29 | Z68: 2011-10-31 | AA68: 2012-01-31 | AB68: 2012-04-30 | AC68: 2012-07-31 | AD68: 2012-10-31 | AE68: 2013-01-31 | AF68: 2013-04-30 | AG68: 2013-07-31 | AH68: 2013-10-31 | AI68: 2014-01-31 | AJ68: 2014-04-30 | AK68: 2014-07-31 | AL68: 2014-10-31 | AM68: 2015-01-30 | AN68: 2015-04-30 | AO68: 2015-07-31 | AP68: =+AP45 -> 2015-10-30 | AQ68: 2016-01-29 | AR68: 2016-04-29 | AS68: 2016-07-29 | AT68: 2016-10-31 | AU68: 2017-01-31 | AV68: =+AV45 -> 2017-04-28 | AW68: 2017-07-31 | AX68: =+AX45 -> 2017-10-31 | AY68: 2018-01-31 | AZ68: =+AZ45 -> 2018-04-30 | BA68: 2018-07-31 | BB68: =+BB45 -> 2018-10-31 | BC68: 2019-01-31 | BD68: =+BD45 -> 2019-04-30 | BE68: 2019-07-31 | BF68: =+BF45 -> 2019-10-31 | BG68: 2020-01-31
A69: Weighted Average LTV | B69: 0.7848 | C69: 0.7849 | D69: 0.7872 | E69: 0.7864 | F69: 0.7859 | G69: 0.7857 | H69: 0.7851 | I69: 0.7837 | J69: 0.7835 | K69: 0.7825 | L69: 0.7824 | M69: 0.785 | N69: 0.7829 | O69: 0.782 | P69: 0.7821 | Q69: 0.7815 | R69: 0.7815 | S69: 0.7817 | T69: 0.7808 | U69: 0.7813 | V69: 0.7812 | W69: 0.7806 | X69: 0.7801 | Y69: 0.7804 | Z69: 0.7805 | AA69: 0.7808 | AB69: 0.7815 | AC69: 0.7816 | AD69: 0.7815 | AE69: 0.7814 | AF69: 0.7808 | AG69: 0.7808 | AH69: 0.7809 | AI69: 0.7806 | AJ69: 0.7795 | AK69: 0.7792 | AL69: 0.7790205103 | AM69: 0.7782868541 | AN69: 0.777537489 | AO69: 0.7764338365 | AP69: 0.7774489524 | AQ69: 0.7768074789 | AR69: 0.776763629 | AS69: 0.7778440721 | AT69: 0.7777928058 | AU69: 0.7772020006 | AV69: 0.7754909855 | AW69: 0.7754990569 | AX69: 0.7732626889 | AY69: 0.7736293155 | AZ69: 0.7694070187 | BA69: 0.7679663591 | BB69: 0.7678464894 | BC69: 0.7677608567 | BD69: 0.7667841505 | BE69: 0.7657839558 | BF69: 0.766145567 | BG69: 0
A70: Weighted Average Nationwide Indexed LTV | B70: 0.6031 | C70: 0.6069 | D70: 0.6029 | E70: 0.6053 | F70: 0.612 | G70: 0.6112 | H70: 0.61 | I70: 0.6096 | J70: 0.6358 | K70: 0.6414 | L70: 0.6621 | M70: 0.6904 | N70: 0.7423 | O70: 0.7712 | P70: 0.8079 | Q70: 0.7883 | R70: 0.7625 | S70: 0.7556 | T70: 0.7595 | U70: 0.7402 | V70: 0.7419 | W70: 0.7621 | X70: 0.7648 | Y70: 0.7499 | Z70: 0.7543 | AA70: 0.7646 | AB70: 0.7768 | AC70: 0.7688 | AD70: 0.7679 | AE70: 0.7764 | AF70: 0.7762 | AG70: 0.7601 | AH70: 0.7429 | AI70: 0.7294 | AJ70: 0.7274 | AK70: 0.6972 | AL70: 0.6899870877 | AM70: 0.6937714698 | AN70: 0.6928316942 | AO70: 0.6745572049 | AP70: 0.6743742691 | AQ70: 0.6742712414 | AR70: 0.6706866318 | AS70: 0.6527277143 | AT70: 0.6472613461 | AU70: 0.650394204 | AV70: 0.6514962942 | AW70: 0.6429801577 | AX70: 0.6409814405 | AY70: 0.6419771656 | AZ70: 0.6405278054 | BA70: 0.6343764295 | BB70: 0.6298350472 | BC70: 0.6393824709 | BD70: 0.6438609226 | BE70: 0.6364942819 | BF70: 0.6462550291 | BG70: 0
A71: Weighted Average Halifax Indexed LTV | B71: 0.6106 | C71: 0.6003 | D71: 0.5961 | E71: 0.5966 | F71: 0.6075 | G71: 0.6067 | H71: 0.608 | I71: 0.6079 | J71: 0.6207 | K71: 0.6266 | L71: 0.6533 | M71: 0.6788 | N71: 0.7309 | O71: 0.7856 | P71: 0.8079 | Q71: 0.8108 | R71: 0.7906 | S71: 0.7786 | T71: 0.7859 | U71: 0.7707 | V71: 0.7814 | W71: 0.7889 | X71: 0.8108 | Y71: 0.8057 | Z71: 0.7964 | AA71: 0.8094 | AB71: 0.8102 | AC71: 0.8126 | AD71: 0.8158 | AE71: 0.8191 | AF71: 0.8036 | AG71: 0.7803 | AH71: 0.7678 | AI71: 0.7609 | AJ71: 0.7534 | AK71: 0.7264 | AL71: 0.7071724292 | AM71: 0.7160153798 | AN71: 0.6957947586 | AO71: 0.6643772578 | AP71: 0.6601891752 | AQ71: 0.6652880572 | AR71: 0.6425158362 | AS71: 0.6228566665 | AT71: n/a | AU71: n/a | AV71: n/a | AW71: n/a | AX71: n/a | AY71: n/a | AZ71: n/a | BA71: n/a | BB71: n/a | BC71: n/a | BD71: n/a | BE71: n/a | BF71: n/a | BG71: n/a
A72: % of Variable Rate Mortgages | B72: 0.0524 | C72: 0.0514 | D72: 0.0497 | E72: 0.0275 | F72: 0.032 | G72: 0.0408 | H72: 0.0498 | I72: 0.0576 | J72: 0.0745 | K72: 0.072 | L72: 0.0727 | M72: 0.0713 | N72: 0.0712 | O72: 0.0703 | P72: 0.058 | Q72: 0.058 | R72: 0.0575 | S72: 0.0572 | T72: 0.0567 | U72: 0.0567 | V72: 0.0568 | W72: 0.0561 | X72: 0.0554 | Y72: 0.0544 | Z72: 0.0537 | AA72: 0.0535 | AB72: 0.0524 | AC72: 0.0524 | AD72: 0.0521 | AE72: 0.0515 | AF72: 0.0511 | AG72: 0.0511 | AH72: 0.0503 | AI72: 0.0503 | AJ72: 0.0507 | AK72: 0.051 | AL72: 0.05131929157 | AM72: 0.05138712726 | AN72: 0.05141949587 | AO72: 0.05194313225 | AP72: 0.05018881659 | AQ72: 0.05051890341 | AR72: 0.05018829336 | AS72: 0.04749243104 | AT72: 0.04784101611 | AU72: 0.04544459662 | AV72: 0.04542902194 | AW72: 0.04548056562 | AX72: 0.04497817123 | AY72: 0.04538749214 | AZ72: 0.04317719746 | BA72: 0.04190825166 | BB72: 0.04227835908 | BC72: 0.0425838425 | BD72: 0.04262989265 | BE72: 0.04113731572 | BF72: 0.04093540333 | BG72: 0
A73: % of Fixed Rate Mortgages | B73: 0.3094 | C73: 0.3164 | D73: 0.3197 | E73: 0.4308 | F73: 0.4498 | G73: 0.4726 | H73: 0.4594 | I73: 0.3913 | J73: 0.4116 | K73: 0.3988 | L73: 0.4611 | M73: 0.4702 | N73: 0.3915 | O73: 0.3835 | P73: 0.341 | Q73: 0.2923 | R73: 0.2438 | S73: 0.2288 | T73: 0.1607 | U73: 0.0981 | V73: 0.0926 | W73: 0.0693 | X73: 0.0545 | Y73: 0.0279 | Z73: 0.0222 | AA73: 0.0209 | AB73: 0.0184 | AC73: 0.0183 | AD73: 0.0185 | AE73: 0.0186 | AF73: 0.0144 | AG73: 0 | AH73: 0 | AI73: 0 | AJ73: 0 | AK73: 0 | AL73: 0 | AM73: 0 | AN73: 0 | AO73: 0 | AP73: 0 | AQ73: 0 | AR73: 0 | AS73: 0 | AT73: 0 | AU73: 0 | AV73: 0 | AW73: 0 | AX73: 0 | AY73: 0 | AZ73: 0 | BA73: 0 | BB73: 0.01808569815 | BC73: 0.01852670444 | BD73: 0.01876750211 | BE73: 0.0191235221 | BF73: 0.01945284229 | BG73: 0
A74: % of Base Rate Mortgages | B74: 0.0032 | C74: 0.0032 | D74: 0.0033 | E74: 0.005 | F74: 0 | G74: 0 | H74: 0 | I74: 0 | J74: 0 | K74: 0 | L74: 0 | M74: 0 | N74: 0 | O74: 0 | P74: 0 | Q74: 0 | R74: 0 | S74: 0 | T74: 0 | U74: 0 | V74: 0 | W74: 0 | X74: 0 | Y74: 0 | Z74: 0 | AA74: 0 | AB74: 0 | AC74: 0 | AD74: 0 | AE74: 0 | AF74: 0 | AG74: 0 | AH74: 0 | AI74: 0 | AJ74: 0 | AK74: 0 | AL74: 0 | AM74: 0 | AN74: 0 | AO74: 0 | AP74: 0 | AQ74: 0 | AR74: 0 | AS74: 0 | AT74: 0 | AU74: 0 | AV74: 0 | AW74: 0 | AX74: 0 | AY74: 0 | AZ74: 0 | BA74: 0 | BB74: 0 | BC74: 0 | BD74: 0 | BE74: 0 | BF74: 0 | BG74: 0
A75: % of Libor Linked Mortgages | B75: 0.635 | C75: 0.6289 | D75: 0.6273 | E75: 0.5367 | F75: 0.5182 | G75: 0.4866 | H75: 0.4909 | I75: 0.551 | J75: 0.5139 | K75: 0.5292 | L75: 0.4662 | M75: 0.4585 | N75: 0.5372 | O75: 0.5462 | P75: 0.601 | Q75: 0.6497 | R75: 0.6986 | S75: 0.714 | T75: 0.7826 | U75: 0.8452 | V75: 0.8507 | W75: 0.8746 | X75: 0.89 | Y75: 0.9178 | Z75: 0.9241 | AA75: 0.9257 | AB75: 0.9292 | AC75: 0.9293 | AD75: 0.9294 | AE75: 0.9299 | AF75: 0.9344 | AG75: 0.9489 | AH75: 0.9497 | AI75: 0.9497 | AJ75: 0.9493 | AK75: 0.949 | AL75: 0.9486807084 | AM75: 0.9486128727 | AN75: 0.9485805041 | AO75: 0.9480568678 | AP75: 0.9498111834 | AQ75: 0.9494810966 | AR75: 0.9498117066 | AS75: 0.952507569 | AT75: 0.9521589839 | AU75: 0.9545554034 | AV75: 0.9545709781 | AW75: 0.9545194344 | AX75: 0.9550218288 | AY75: 0.9546125079 | AZ75: 0.9568228025 | BA75: 0.9580917483 | BB75: 0.9396359428 | BC75: 0.9388894531 | BD75: 0.9386026052 | BE75: 0.9397391622 | BF75: 0.9396117544 | BG75: 0
A76: Weighted Average Loan Size | B76: 101549.77 | C76: 103047.06 | D76: 104156.37 | E76: 102917.62 | F76: 104428.51 | G76: 105508.23 | H76: 106390.99 | I76: 110482.83 | J76: 112230.59 | K76: 113788.79 | L76: 114053.4 | M76: 117191.65 | N76: 118010.82 | O76: 118830.07 | P76: 119260.83 | Q76: 119802.7 | R76: 120167.94 | S76: 120283.13 | T76: 120701.29 | U76: 120946.41 | V76: 120638.75 | W76: 120709.78 | X76: 120761.63 | Y76: 121090.52 | Z76: 121633.82 | AA76: 122212.7 | AB76: 122788.22 | AC76: 122958.8 | AD76: 123064.58 | AE76: 123057.53 | AF76: 123013.49 | AG76: 122935.72 | AH76: 123357.23 | AI76: 123531.89 | AJ76: 123495.95 | AK76: 123651.96 | AL76: 124023.5986 | AM76: 124533.9154 | AN76: 125164.5477 | AO76: 125089.1859 | AP76: 125377.7536 | AQ76: 125669.6667 | AR76: 125225.5833 | AS76: 125713.5841 | AT76: 126703.3996 | AU76: 126595.6337 | AV76: 127269.9727 | AW76: 126347.7507 | AX76: 127442.8897 | AY76: 127553.3597 | AZ76: 127426.9352 | BA76: 127294.4051 | BB76: 127967.3866 | BC76: 127893.1504 | BD76: 128037.8059 | BE76: 127564.4262 | BF76: 127779.1428 | BG76: 0
A77: Weighted Average Interest Rate | B77: 0.05936 | C77: 0.05944 | D77: 0.05917 | E77: 0.05884 | F77: 0.06032 | G77: 0.06133 | H77: 0.06297 | I77: 0.06703 | J77: 0.06799 | K77: 0.06626 | L77: 0.06554 | M77: 0.0652 | N77: 0.06838 | O77: 0.04772 | P77: 0.04077 | Q77: 0.03625 | R77: 0.03084 | S77: 0.0311 | T77: 0.02926 | U77: 0.02796 | V77: 0.02776 | W77: 0.02718 | X77: 0.0276 | Y77: 0.02671 | Z77: 0.02738 | AA77: 0.02828 | AB77: 0.028 | AC77: 0.02628 | AD77: 0.02344 | AE77: 0.02331 | AF77: 0.02315 | AG77: 0.02277 | AH77: 0.02277 | AI77: 0.02279 | AJ77: 0.02282 | AK77: 0.02281 | AL77: 0.02293833519 | AM77: 0.02294015331 | AN77: 0.02298228721 | AO77: 0.02303919315 | AP77: 0.02304118275 | AQ77: 0.02328157698 | AR77: 0.02327959791 | AS77: 0.02319498406 | AT77: 0.02135050212 | AU77: 0.02125962631 | AV77: 0.0214210722 | AW77: 0.02137776442 | AX77: 0.02146924156 | AY77: 0.02347171857 | AZ77: 0.02506105277 | BA77: 0.02445593469 | BB77: 0.02632308496 | BC77: 0.02725766882 | BD77: 0.02642064758 | BE77: 0.0255352195 | BF77: 0.02556185006 | BG77: 0
A78: Weighted Average Maturity Date (years) | B78: 20 | C78: 19.81 | D78: 19.63 | E78: 19.4 | F78: 19.19 | G78: 19.01 | H78: 18.73 | I78: 18.51 | J78: 18.29 | K78: 18.02 | L78: 17.75 | M78: 17.5 | N78: 17.27 | O78: 17.06 | P78: 16.84 | Q78: 16.62 | R78: 16.38 | S78: 16.13 | T78: 15.9 | U78: 15.69 | V78: 15.44 | W78: 15.21 | X78: 14.97 | Y78: 14.75 | Z78: 14.54 | AA78: 14.31 | AB78: 14.13 | AC78: 13.91 | AD78: 13.68 | AE78: 13.45 | AF78: 13.26 | AG78: 13.07 | AH78: 12.85 | AI78: 12.63 | AJ78: 12.4 | AK78: 12.15 | AL78: 11.9346387 | AM78: 11.72952155 | AN78: 11.5174837 | AO78: 11.3371579 | AP78: 11.15044318 | AQ78: 10.99551043 | AR78: 10.80901753 | AS78: 10.60859033 | AT78: 10.42768825 | AU78: 10.23388638 | AV78: 10.05721866 | AW78: 9.800385675 | AX78: 9.587564609 | AY78: 9.355832973 | AZ78: 9.174171544 | BA78: 8.984979621 | BB78: 9.026520446 | BC78: 8.846360538 | BD78: 8.610997982 | BE78: 8.391984748 | BF78: 8.196242905 | BG78: 0
A79: Weighted Average Seasoning (months) | B79: 30.99 | C79: 33.86 | D79: 36.02 | E79: 38.97 | F79: 41.86 | G79: 44.59 | H79: 47.41 | I79: 50.35 | J79: 53.36 | K79: 56.21 | L79: 59.38 | M79: 62.83 | N79: 65.64 | O79: 68.52 | P79: 71.33 | Q79: 74.37 | R79: 77.33 | S79: 80.44 | T79: 83.42 | U79: 86.38 | V79: 89.37 | W79: 92.3 | X79: 95.23 | Y79: 98.11 | Z79: 101.02 | AA79: 104.05 | AB79: 106.93 | AC79: 109.92 | AD79: 112.99 | AE79: 115.99 | AF79: 118.66 | AG79: 121.53 | AH79: 124.46 | AI79: 127.46 | AJ79: 130.42 | AK79: 133.54 | AL79: 136.5479496 | AM79: 139.5492863 | AN79: 142.4753754 | AO79: 145.3240939 | AP79: 148.307826 | AQ79: 151.4409859 | AR79: 154.3914794 | AS79: 157.3791942 | AT79: 160.1616932 | AU79: 163.2894167 | AV79: 166.2361675 | AW79: 169.5283902 | AX79: 172.5684078 | AY79: 175.538952 | AZ79: 178.2963795 | BA79: 181.107688 | BB79: 184.0232028 | BC79: 186.9218603 | BD79: 189.8380214 | BE79: 192.824703 | BF79: 195.8369226 | BG79: 0
A80: % of Interest Only Mortgages | B80: 0.8525 | C80: 0.8529 | D80: 0.8586 | E80: 0.8641 | F80: 0.864 | G80: 0.8656 | H80: 0.8673 | I80: 0.8698 | J80: 0.8777 | K80: 0.8807 | L80: 0.8803 | M80: 0.8859 | N80: 0.8923 | O80: 0.8967 | P80: 0.9075 | Q80: 0.9093 | R80: 0.9138 | S80: 0.9183 | T80: 0.9228 | U80: 0.9257 | V80: 0.9287 | W80: 0.9283 | X80: 0.9294 | Y80: 0.9305 | Z80: 0.9324 | AA80: 0.934 | AB80: 0.9354 | AC80: 0.9366 | AD80: 0.9381 | AE80: 0.9401 | AF80: 0.9408 | AG80: 0.9417 | AH80: 0.943 | AI80: 0.9446 | AJ80: 0.946 | AK80: 0.9471 | AL80: 0.9487422362 | AM80: 0.9499982747 | AN80: 0.9511793995 | AO80: 0.9519890673 | AP80: 0.9541816553 | AQ80: 0.9546928552 | AR80: 0.9618930779 | AS80: 0.9645357306 | AT80: 0.9662751449 | AU80: 0.9677002484 | AV80: 0.9686385737 | AW80: 0.9700277332 | AX80: 0.9708868061 | AY80: 0.9727188031 | AZ80: 0.9724428531 | BA80: 0.9737863858 | BB80: 0.9752555261 | BC80: 0.9760308177 | BD80: 0.9767549664 | BE80: 0.9774228722 | BF80: 0.9783695032 | BG80: 0
A81: % of Repayment Mortgages | B81: 0.1475 | C81: 0.1471 | D81: 0.1414 | E81: 0.1359 | F81: 0.136 | G81: 0.1344 | H81: 0.1327 | I81: 0.1302 | J81: 0.1223 | K81: 0.1193 | L81: 0.1197 | M81: 0.1141 | N81: 0.1077 | O81: 0.1033 | P81: 0.0925 | Q81: 0.0907 | R81: 0.0862 | S81: 0.0817 | T81: 0.0772 | U81: 0.0743 | V81: 0.0713 | W81: 0.0717 | X81: 0.0706 | Y81: 0.0695 | Z81: 0.0676 | AA81: 0.066 | AB81: 0.0646 | AC81: 0.0634 | AD81: 0.0619 | AE81: 0.0599 | AF81: 0.0592 | AG81: 0.0583 | AH81: 0.057 | AI81: 0.0554 | AJ81: 0.054 | AK81: 0.0529 | AL81: 0.05125776375 | AM81: 0.05000172534 | AN81: 0.0488206005 | AO81: 0.04801093267 | AP81: 0.04581834474 | AQ81: 0.0453071448 | AR81: 0.03810692208 | AS81: 0.03546426937 | AT81: 0.0337248551 | AU81: 0.0322997516 | AV81: 0.03136142628 | AW81: 0.0299722668 | AX81: 0.02911319394 | AY81: 0.02728119694 | AZ81: 0.02755714687 | BA81: 0.02621361416 | BB81: 0.02474447389 | BC81: 0.02396918228 | BD81: 0.02324503362 | BE81: 0.0225771278 | BF81: 0.02163049675 | BG81: 0
A82: % of Mortgages in London | B82: 0.1346 | C82: 0.1337 | D82: 0.1294 | E82: 0.1263 | F82: 0.1266 | G82: 0.1257 | H82: 0.1238 | I82: 0.1208 | J82: 0.1195 | K82: 0.119 | L82: 0.1203 | M82: 0.1238 | N82: 0.1173 | O82: 0.1157 | P82: 0.1142 | Q82: 0.1145 | R82: 0.1142 | S82: 0.1133 | T82: 0.113 | U82: 0.1129 | V82: 0.1111 | W82: 0.1103 | X82: 0.1096 | Y82: 0.1086 | Z82: 0.1084 | AA82: 0.109 | AB82: 0.1083 | AC82: 0.1086 | AD82: 0.1086 | AE82: 0.1082 | AF82: 0.1048 | AG82: 0.1036 | AH82: 0.1035 | AI82: 0.1045 | AJ82: 0.1052 | AK82: 0.1024 | AL82: 0.103010494 | AM82: 0.1035077108 | AN82: 0.1029489329 | AO82: 0.1038092103 | AP82: 0.1027442597 | AQ82: 0.1036912491 | AR82: 0.1014598802 | AS82: 0.1015373865 | AT82: 0.1001285983 | AU82: 0.09362413013 | AV82: 0.09105929092 | AW82: 0.08539902034 | AX82: 0.08779289669 | AY82: 0.088398936 | AZ82: 0.08937280918 | BA82: 0.08597273081 | BB82: 0.08628777314 | BC82: 0.08600228904 | BD82: 0.08676102334 | BE82: 0.08511788916 | BF82: 0.08187081622 | BG82: 0
A83: % of Mortgages in the South East | B83: 0.2485 | C83: 0.2482 | D83: 0.2478 | E83: 0.245 | F83: 0.2433 | G83: 0.2417 | H83: 0.2412 | I83: 0.239 | J83: 0.2379 | K83: 0.2396 | L83: 0.2362 | M83: 0.2315 | N83: 0.2333 | O83: 0.2342 | P83: 0.2336 | Q83: 0.2329 | R83: 0.2328 | S83: 0.2326 | T83: 0.2337 | U83: 0.2344 | V83: 0.2341 | W83: 0.2342 | X83: 0.2351 | Y83: 0.2364 | Z83: 0.2363 | AA83: 0.2369 | AB83: 0.2356 | AC83: 0.2344 | AD83: 0.2344 | AE83: 0.2357 | AF83: 0.2368 | AG83: 0.2374 | AH83: 0.2361 | AI83: 0.2358 | AJ83: 0.2337 | AK83: 0.2343 | AL83: 0.2319334438 | AM83: 0.2298786255 | AN83: 0.2307021051 | AO83: 0.2306589758 | AP83: 0.2289657447 | AQ83: 0.2270271295 | AR83: 0.2314366449 | AS83: 0.2309441887 | AT83: 0.2281171629 | AU83: 0.2296226334 | AV83: 0.2282580753 | AW83: 0.2291323154 | AX83: 0.2248675607 | AY83: 0.2257318521 | AZ83: 0.2274264656 | BA83: 0.2282467371 | BB83: 0.228106662 | BC83: 0.2239366762 | BD83: 0.2250035674 | BE83: 0.2206558326 | BF83: 0.2193382272 | BG83: 0
A84: % of Owner Occupied Mortgages | B84: 0 | C84: 0 | D84: 0 | E84: 0 | F84: 0 | G84: 0 | H84: 0 | I84: 0 | J84: 0 | K84: 0 | L84: 0 | M84: 0 | N84: 0 | O84: 0 | P84: 0 | Q84: 0 | R84: 0 | S84: 0 | T84: 0 | U84: 0 | V84: 0 | W84: 0 | X84: 0 | Y84: 0 | Z84: 0 | AA84: 0 | AB84: 0 | AC84: 0 | AD84: 0 | AE84: 0 | AF84: 0 | AG84: 0 | AH84: 0 | AI84: 0 | AJ84: 0 | AK84: 0 | AL84: 0 | AM84: 0 | AN84: 0 | AO84: 0 | AP84: 0 | AQ84: 0 | AR84: 0 | AS84: 0 | AT84: 0 | AU84: 0 | AV84: 0 | AW84: 0 | AX84: 0 | AY84: 0 | AZ84: 0 | BA84: 0 | BB84: 0 | BC84: 0 | BD84: 0 | BE84: 0 | BF84: 0 | BG84: 0
A85: % of Investment Home Loans - Professional Landlords | B85: 0.8795 | C85: 0.882 | D85: 0.8822 | E85: 0.8884 | F85: 0.8885 | G85: 0.8905 | H85: 0.8928 | I85: 0.9052 | J85: 0.9106 | K85: 0.9148 | L85: 0.9172 | M85: 0.9214 | N85: 0.9222 | O85: 0.9218 | P85: 0.9223 | Q85: 0.9225 | R85: 0.9227 | S85: 0.9227 | T85: 0.9227 | U85: 0.9229 | V85: 0.9238 | W85: 0.925 | X85: 0.9256 | Y85: 0.926 | Z85: 0.9272 | AA85: 0.9279 | AB85: 0.9282 | AC85: 0.9285 | AD85: 0.9287 | AE85: 0.9285 | AF85: 0.9284 | AG85: 0.9294 | AH85: 0.9294 | AI85: 0.9296 | AJ85: 0.9324 | AK85: 0.9331 | AL85: 0.9333225305 | AM85: 0.9331920056 | AN85: 0.9331425185 | AO85: 0.933172757 | AP85: 0.9356003268 | AQ85: 0.9351436659 | AR85: 0.935339174 | AS85: 0.9358246983 | AT85: 0.9361525638 | AU85: 0.935325494 | AV85: 0.9365882691 | AW85: 0.9367281238 | AX85: 0.9375710824 | AY85: 0.9396063731 | AZ85: 0.9402099903 | BA85: 0.9411581584 | BB85: 0.9428175271 | BC85: 0.9429880425 | BD85: 0.9436067684 | BE85: 0.9447782885 | BF85: 0.9465997922 | BG85: 0
A86: % of Investment Home Loans - Emerging Professional Landlords | B86: 0.1205 | C86: 0.118 | D86: 0.1178 | E86: 0.1116 | F86: 0.1115 | G86: 0.1095 | H86: 0.1072 | I86: 0.0948 | J86: 0.0894 | K86: 0.0852 | L86: 0.0828 | M86: 0.0786 | N86: 0.0778 | O86: 0.0782 | P86: 0.0777 | Q86: 0.0775 | R86: 0.0773 | S86: 0.0773 | T86: 0.0773 | U86: 0.0771 | V86: 0.0762 | W86: 0.075 | X86: 0.0744 | Y86: 0.074 | Z86: 0.0728 | AA86: 0.0721 | AB86: 0.0718 | AC86: 0.0715 | AD86: 0.0713 | AE86: 0.0715 | AF86: 0.0716 | AG86: 0.0706 | AH86: 0.0706 | AI86: 0.0704 | AJ86: 0.0676 | AK86: 0.0669 | AL86: 0.06667746947 | AM86: 0.06680799437 | AN86: 0.06685748153 | AO86: 0.06682724297 | AP86: 0.06439967315 | AQ86: 0.06485633411 | AR86: 0.06466082595 | AS86: 0.06417530175 | AT86: 0.0638474362 | AU86: 0.06467450603 | AV86: 0.06341173094 | AW86: 0.06327187617 | AX86: 0.06242891757 | AY86: 0.06039362689 | AZ86: 0.05979000973 | BA86: 0.05884184161 | BB86: 0.05718247291 | BC86: 0.05701195749 | BD86: 0.0563932316 | BE86: 0.05522171148 | BF86: 0.0534002078 | BG86: 0
A87: Weighted Average Interest Coverage Ratio (calculated at the origination date) | B87: 2.21 | C87: 2.22 | D87: 2.2 | E87: 2.2 | F87: 2.21 | G87: 2.22 | H87: 2.21 | I87: 2.22 | J87: 2.25 | K87: 2.26 | L87: 2.27 | M87: 2.19 | N87: 2.09 | O87: 2.08 | P87: 2.08 | Q87: 2.08 | R87: 2.09 | S87: 2.09 | T87: 2.09 | U87: 2.09 | V87: 2.1 | W87: 2.09 | X87: 2.09 | Y87: 2.09 | Z87: 2.09 | AA87: 2.08 | AB87: 2.07 | AC87: 2.07 | AD87: 2.07 | AE87: 2.07 | AF87: 2.06 | AG87: 2.05 | AH87: 2.05 | AI87: 2.05 | AJ87: 2.05 | AK87: 2.05 | AL87: 2.04638628 | AM87: 2.046793661 | AN87: 2.046023259 | AO87: 2.035783836 | AP87: 2.034929631 | AQ87: 2.040896779 | AR87: 2.037359912 | AS87: 2.039579474 | AT87: 2.038619675 | AU87: 2.047683949 | AV87: 2.051159021 | AW87: 2.052703776 | AX87: 2.029448018 | AY87: 2.024417419 | AZ87: 2.015516996 | BA87: 2.00478192 | BB87: 1.984108288 | BC87: 1.991267113 | BD87: 1.990839894 | BE87: 1.984133256 | BF87: 1.983239172 | BG87: 0
A88: PML Lifetime Redemption Rate | B88: 0.1512 | C88: 0.1423 | D88: 0.1401 | E88: 0.1502 | F88: 0.1465 | G88: 0.147 | H88: 0.1505 | I88: 0.1603 | J88: 0.166 | K88: 0.1689 | L88: 0.1745 | M88: 0.1783 | N88: 0.1753 | O88: 0.1674 | P88: 0.1604 | Q88: 0.1524 | R88: 0.1455 | S88: 0.1398 | T88: 0.1342 | U88: 0.1292 | V88: 0.1259 | W88: 0.1216 | X88: 0.1173 | Y88: 0.1138 | Z88: 0.1104 | AA88: 0.1072 | AB88: 0.1048 | AC88: 0.102 | AD88: 0.0998 | AE88: 0.0976 | AF88: 0.0957 | AG88: 0.0939 | AH88: 0.0921 | AI88: 0.0904 | AJ88: 0.089 | AK88: 0.0878 | AL88: 0.0867 | AM88: 0.0852 | AN88: 0.084 | AO88: 0.0831 | AP88: 0.0827 | AQ88: 0.0818 | AR88: 0.083 | AS88: 0.082 | AT88: 0.0813 | AU88: 0.0813 | AV88: 0.0808 | AW88: 0.0819 | AX88: 0.0811 | AY88: 0.0804 | AZ88: 0.0801 | BA88: 0.0801 | BB88: 0.0797 | BC88: 0.0799 | BD88: 0.0794 | BE88: 0.0793 | BF88: 0.0791 | BG88: 1
A89: Number of Properties in Possession | B89: 0 | C89: 0 | D89: 0 | E89: 0 | F89: 0 | G89: 0 | H89: 0 | I89: 0 | J89: 0 | K89: 0 | L89: 0 | M89: 0 | N89: 0 | O89: 0 | P89: 1 | Q89: 1 | R89: 1 | S89: 0 | T89: 0 | U89: 0 | V89: 0 | W89: 0 | X89: 0 | Y89: 0 | Z89: 0 | AA89: 0 | AB89: 0 | AC89: 0 | AD89: 0 | AE89: 0 | AF89: 0 | AG89: 0 | AH89: 0 | AI89: 0 | AJ89: 0 | AK89: 0 | AL89: 0 | AM89: 0 | AN89: 0 | AO89: 0 | AP89: 0 | AQ89: 0 | AR89: 0 | AS89: 0 | AT89: 0 | AU89: 0 | AV89: 0 | AW89: 0 | AX89: 0 | AY89: 0 | AZ89: 0 | BA89: 0 | BB89: 0 | BC89: 0 | BD89: 0 | BE89: 0 | BF89: 1 | BG89: 0
A90: Appointment of a Receiver of Rent | B90: 8 | C90: 8 | D90: 10 | E90: 12 | F90: 8 | G90: 5 | H90: 11 | I90: 13 | J90: 16 | K90: 14 | L90: 19 | M90: 34 | N90: 41 | O90: 63 | P90: 71 | Q90: 66 | R90: 70 | S90: 68 | T90: 46 | U90: 42 | V90: 38 | W90: 43 | X90: 43 | Y90: 42 | Z90: 45 | AA90: 55 | AB90: 51 | AC90: 52 | AD90: 49 | AE90: 47 | AF90: 46 | AG90: 45 | AH90: 44 | AI90: 41 | AJ90: 47 | AK90: 43 | AL90: 40 | AM90: 40 | AN90: 40 | AO90: 38 | AP90: 35 | AQ90: 31 | AR90: 29 | AS90: 29 | AT90: 28 | AU90: 24 | AV90: 22 | AW90: 20 | AX90: 21 | AY90: 22 | AZ90: 21 | BA90: 21 | BB90: 19 | BC90: 20 | BD90: 22 | BE90: 22 | BF90: 22 | BG90: 0
A91: PML Quarterly Losses | B91: 0 | C91: 0 | D91: 0 | E91: 0 | F91: 1 | G91: 69 | H91: 0 | I91: 41 | J91: 1 | K91: 28 | L91: 1 | M91: 1 | N91: 25 | O91: 1 | P91: 106 | Q91: 171 | R91: 19 | S91: 80 | T91: 59 | U91: 253 | V91: 60 | W91: 120 | X91: 0 | Y91: 66 | Z91: 7 | AA91: 14 | AB91: 47 | AC91: 29 | AD91: 410 | AE91: 116 | AF91: -3 | AG91: 13 | AH91: 35 | AI91: 286 | AJ91: -30 | AK91: 279 | AL91: 48 | AM91: 9 | AN91: -2 | AO91: 36 | AP91: 52 | AQ91: 143 | AR91: 238 | AS91: 32 | AT91: 24 | AU91: 69 | AV91: -3 | AW91: -3 | AX91: -33 | AY91: -8 | AZ91: -3 | BA91: 20 | BB91: 20 | BC91: 0 | BD91: 0 | BE91: -13 | BF91: 0 | BG91: 171
A92: Arrears excluding Receiver of Rent and Possession Cases
A93: Performing Loans | B93: 0.9939 | C93: 0.9951 | D93: 0.9938 | E93: 0.9964 | F93: 0.9973 | G93: 0.997 | H93: 0.9975 | I93: 0.9901 | J93: 0.9941 | K93: 0.9829 | L93: 0.9842 | M93: 0.9921 | N93: 0.9784 | O93: 0.9804 | P93: 0.9855 | Q93: 0.986 | R93: 0.9851 | S93: 0.9842 | T93: 0.9886 | U93: 0.9913 | V93: 0.988 | W93: 0.9861 | X93: 0.9853 | Y93: 0.985 | Z93: 0.991 | AA93: 0.989 | AB93: 0.9936 | AC93: 0.9915 | AD93: 0.9909 | AE93: 0.9898 | AF93: 0.9985 | AG93: 0.9983 | AH93: 0.9983 | AI93: 0.9971 | AJ93: 0.9964 | AK93: 0.9985 | AL93: 0.9945773385 | AM93: 1 | AN93: 1 | AO93: 1 | AP93: 1 | AQ93: 1 | AR93: 0.9994484609 | AS93: 0.9994635658 | AT93: 1 | AU93: 1 | AV93: 1 | AW93: 1 | AX93: 0.9986347975 | AY93: 0.99957085 | AZ93: 1 | BA93: 0.9906253163 | BB93: 0.9984957906 | BC93: 0.9987456757 | BD93: 0.996427518 | BE93: 0.9879868162 | BF93: 0.9924752838 | BG93: 0
A94: >1 to 2 months arrears | B94: 0.0038 | C94: 0.0032 | D94: 0.0033 | E94: 0.0025 | F94: 0.0024 | G94: 0.0022 | H94: 0.0019 | I94: 0.0098 | J94: 0.0056 | K94: 0.0129 | L94: 0.0051 | M94: 0.0049 | N94: 0.0153 | O94: 0.0106 | P94: 0.0117 | Q94: 0.0114 | R94: 0.0118 | S94: 0.0117 | T94: 0.0084 | U94: 0.0071 | V94: 0.0092 | W94: 0.0107 | X94: 0.013 | Y94: 0.0105 | Z94: 0.0073 | AA94: 0.0093 | AB94: 0.0047 | AC94: 0.0067 | AD94: 0.0077 | AE94: 0.0095 | AF94: 0.0015 | AG94: 0.0017 | AH94: 0.0017 | AI94: 0.0016 | AJ94: 0.0036 | AK94: 0.0005 | AL94: 0.004479013262 | AM94: 0 | AN94: 0 | AO94: 0 | AP94: 0 | AQ94: 0 | AR94: 0 | AS94: 0.0005364341922 | AT94: 0 | AU94: 0 | AV94: 0 | AW94: 0 | AX94: 0.001049005917 | AY94: 0 | AZ94: 0 | BA94: 0.005131650063 | BB94: 0 | BC94: 0.001254324277 | BD94: 0.002008586605 | BE94: 0.005778576446 | BF94: 0.003808080315 | BG94: 0
A95: >2 to 3 months arrears | B95: 0.0013 | C95: 0 | D95: 0.0009 | E95: 0.0011 | F95: 0 | G95: 0.0005 | H95: 0.0005 | I95: 0.0001 | J95: 0.0003 | K95: 0.0034 | L95: 0.0107 | M95: 0.002 | N95: 0.0046 | O95: 0.0054 | P95: 0.0005 | Q95: 0.0005 | R95: 0.001 | S95: 0.0025 | T95: 0.0013 | U95: 0 | V95: 0.0012 | W95: 0.0015 | X95: 0 | Y95: 0.0018 | Z95: 0 | AA95: 0 | AB95: 0 | AC95: 0 | AD95: 0.0014 | AE95: 0.0007 | AF95: 0 | AG95: 0 | AH95: 0 | AI95: 0.0013 | AJ95: 0 | AK95: 0 | AL95: 0.0009436482678 | AM95: 0 | AN95: 0 | AO95: 0 | AP95: 0 | AQ95: 0 | AR95: 0.0005515390643 | AS95: 0 | AT95: 0 | AU95: 0 | AV95: 0 | AW95: 0 | AX95: 0.0003161965487 | AY95: 0.0004291500354 | AZ95: 0 | BA95: 0.004243033605 | BB95: 0.001504209394 | BC95: 0 | BD95: 0 | BE95: 0.004640473857 | BF95: 0.002089635489 | BG95: 0
A96: >3 months arrears | B96: 0.001 | C96: 0.0017 | D96: 0.002 | E96: 0 | F96: 0.0003 | G96: 0.0003 | H96: 0.0001 | I96: 0 | J96: 0 | K96: 0.0008 | L96: 0 | M96: 0.001 | N96: 0.0017 | O96: 0.0036 | P96: 0.0023 | Q96: 0.0021 | R96: 0.0021 | S96: 0.0016 | T96: 0.0017 | U96: 0.0016 | V96: 0.0016 | W96: 0.0017 | X96: 0.0017 | Y96: 0.0027 | Z96: 0.0017 | AA96: 0.0017 | AB96: 0.0017 | AC96: 0.0018 | AD96: 0 | AE96: 0 | AF96: 0 | AG96: 0 | AH96: 0 | AI96: 0 | AJ96: 0 | AK96: 0.001 | AL96: 0 | AM96: 0 | AN96: 0 | AO96: 0 | AP96: 0 | AQ96: 0 | AR96: 0 | AS96: 0 | AT96: 0 | AU96: 0 | AV96: 0 | AW96: 0 | AX96: 0 | AY96: 0 | AZ96: 0 | BA96: 0 | BB96: 0 | BC96: 0 | BD96: 0.001563895374 | BE96: 0.001594133507 | BF96: 0.001627000432 | BG96: 0
A97: Total | B97: =+B96+B95+B94+B93 -> 1 | C97: 1 | D97: 1 | E97: 1 | F97: 1 | G97: 1 | H97: 1 | I97: 1 | J97: 1 | K97: 1 | L97: 1 | M97: 1 | N97: 1 | O97: 1 | P97: 1 | Q97: 1 | R97: 1 | S97: 1 | T97: 1 | U97: 1 | V97: 1 | W97: 1 | X97: 1 | Y97: 1 | Z97: 1 | AA97: =+AA96+AA95+AA94+AA93 -> 1 | AB97: 1 | AC97: 1 | AD97: 1 | AE97: 1 | AF97: 1 | AG97: =+AG96+AG95+AG94+AG93 -> 1 | AH97: 1 | AI97: 1 | AJ97: 1 | AK97: 1 | AL97: 1 | AM97: 1 | AN97: 1 | AO97: 1 | AP97: 1 | AQ97: 1 | AR97: 1 | AS97: 1 | AT97: 1 | AU97: 1 | AV97: 1 | AW97: 1 | AX97: 1 | AY97: 1 | AZ97: 1 | BA97: 1 | BB97: 1 | BC97: 1 | BD97: 1 | BE97: 1 | BF97: 1 | BG97: =+BG96+BG95+BG94+BG93 -> 0
A100: Underlying Assets - Mortgage Trust Originated Assets | B100: 2005-10-31 | C100: 2006-01-31 | D100: 2006-04-30 | E100: 2006-07-31 | F100: 2006-10-31 | G100: 2007-01-31 | H100: 2007-04-30 | I100: 2007-07-31 | J100: 2007-10-31 | K100: 2008-01-31 | L100: 2008-04-30 | M100: 2008-07-31 | N100: 2008-10-31 | O100: 2009-01-30 | P100: 2009-04-30 | Q100: 2009-07-31 | R100: 2009-10-30 | S100: 2010-01-29 | T100: 2010-04-30 | U100: 2010-07-30 | V100: 2010-10-29 | W100: 2011-01-31 | X100: 2011-04-28 | Y100: 2011-07-29 | Z100: 2011-10-31 | AA100: 2012-01-31 | AB100: 2012-04-30 | AC100: 2012-07-31 | AD100: 2012-10-31 | AE100: 2013-01-31 | AF100: 2013-04-30 | AG100: 2013-07-31 | AH100: 2013-10-31 | AI100: 2014-01-31 | AJ100: 2014-04-30 | AK100: 2014-07-31 | AL100: 2014-10-31 | AM100: 2015-01-30 | AN100: 2015-04-30 | AO100: 2015-07-31 | AP100: =+AP68 -> 2015-10-30 | AQ100: 2016-01-29 | AR100: 2016-04-29 | AS100: 2016-07-29 | AT100: 2016-10-31 | AU100: 2017-01-31 | AV100: =+AV68 -> 2017-04-28 | AW100: 2017-07-31 | AX100: =+AX68 -> 2017-10-31 | AY100: 2018-01-31 | AZ100: =+AZ68 -> 2018-04-30 | BA100: 2018-07-31 | BB100: =+BB68 -> 2018-10-31 | BC100: 2019-01-31 | BD100: =+BD68 -> 2019-04-30 | BE100: 2019-07-31 | BF100: =+BF68 -> 2019-10-31 | BG100: 2020-01-31
A101: Weighted Average LTV | B101: 0.7755 | C101: 0.7764 | D101: 0.7769 | E101: 0.7762 | F101: 0.7768 | G101: 0.7772 | H101: 0.7791 | I101: 0.7768 | J101: 0.7732 | K101: 0.7761 | L101: 0.7831 | M101: 0.7824 | N101: 0.781 | O101: 0.781 | P101: 0.7785 | Q101: 0.7768 | R101: 0.7762 | S101: 0.7759 | T101: 0.7761 | U101: 0.7753 | V101: 0.7756 | W101: 0.7752 | X101: 0.7744 | Y101: 0.7741 | Z101: 0.7749 | AA101: 0.7744 | AB101: 0.7735 | AC101: 0.7734 | AD101: 0.773 | AE101: 0.7729 | AF101: 0.7727 | AG101: 0.7734 | AH101: 0.7736 | AI101: 0.7726 | AJ101: 0.7728 | AK101: 0.7725 | AL101: 0.7723125781 | AM101: 0.7723653545 | AN101: 0.7722510717 | AO101: 0.7720662271 | AP101: 0.773278785 | AQ101: 0.7729080623 | AR101: 0.7718275252 | AS101: 0.7715774581 | AT101: 0.7716588062 | AU101: 0.7713709548 | AV101: 0.7702714213 | AW101: 0.7710069952 | AX101: 0.7713320543 | AY101: 0.7709204043 | AZ101: 0.7693975669 | BA101: 0.7691243011 | BB101: 0.7732675306 | BC101: 0.7735108887 | BD101: 0.7712729976 | BE101: 0.7731275191 | BF101: 0.774106769 | BG101: 0
A102: Weighted Average Nationwide Indexed LTV | B102: 0.7629 | C102: 0.7669 | D102: 0.7552 | E102: 0.7509 | F102: 0.7399 | G102: 0.7054 | H102: 0.6947 | I102: 0.6733 | J102: 0.6634 | K102: 0.6682 | L102: 0.6938 | M102: 0.718 | N102: 0.7809 | O102: 0.8101 | P102: 0.8415 | Q102: 0.8226 | R102: 0.7953 | S102: 0.7832 | T102: 0.7778 | U102: 0.7493 | V102: 0.7477 | W102: 0.7675 | X102: 0.7643 | Y102: 0.7476 | Z102: 0.7524 | AA102: 0.7575 | AB102: 0.7663 | AC102: 0.7574 | AD102: 0.7553 | AE102: 0.7622 | AF102: 0.7612 | AG102: 0.7445 | AH102: 0.7278 | AI102: 0.7133 | AJ102: 0.7037 | AK102: 0.6717 | AL102: 0.6656669136 | AM102: 0.6678318958 | AN102: 0.6695717259 | AO102: 0.6484971323 | AP102: 0.6473763054 | AQ102: 0.6444198655 | AR102: 0.6390090062 | AS102: 0.6215477739 | AT102: 0.6161762585 | AU102: 0.6167749339 | AV102: 0.6129535739 | AW102: 0.6020092227 | AX102: 0.5985646957 | AY102: 0.6017528155 | AZ102: 0.5958315612 | BA102: 0.5881339134 | BB102: 0.5903493093 | BC102: 0.5961760502 | BD102: 0.59881338 | BE102: 0.5895429022 | BF102: 0.5876364495 | BG102: 0
A103: Weighted Average Halifax Indexed LTV | B103: 0.7616 | C103: 0.7466 | D103: 0.7364 | E103: 0.7297 | F103: 0.7128 | G103: 0.6859 | H103: 0.6704 | I103: 0.6529 | J103: 0.6447 | K103: 0.6495 | L103: 0.6831 | M103: 0.7034 | N103: 0.7597 | O103: 0.8174 | P103: 0.8354 | Q103: 0.8424 | R103: 0.8204 | S103: 0.8029 | T103: 0.7949 | U103: 0.7741 | V103: 0.7881 | W103: 0.7965 | X103: 0.8065 | Y103: 0.799 | Z103: 0.7948 | AA103: 0.7959 | AB103: 0.7976 | AC103: 0.7967 | AD103: 0.7978 | AE103: 0.8012 | AF103: 0.7857 | AG103: 0.7635 | AH103: 0.7521 | AI103: 0.7461 | AJ103: 0.7314 | AK103: 0.7068 | AL103: 0.6856505506 | AM103: 0.6917537947 | AN103: 0.6761279744 | AO103: 0.6422247274 | AP103: 0.6377362337 | AQ103: 0.6380743707 | AR103: 0.6151707684 | AS103: 0.5970544797 | AT103: n/a | AU103: n/a | AV103: n/a | AW103: n/a | AX103: n/a | AY103: n/a | AZ103: n/a | BA103: n/a | BB103: n/a | BC103: n/a | BD103: n/a | BE103: n/a | BF103: n/a | BG103: n/a
A104: % of Variable Rate Mortgages | B104: 0.0003 | C104: 0.0003 | D104: 0.001 | E104: 0 | F104: 0.0007 | G104: 0.0014 | H104: 0.0021 | I104: 0.0109 | J104: 0.0288 | K104: 0.0338 | L104: 0.0366 | M104: 0.0306 | N104: 0.032 | O104: 0.0337 | P104: 0.0339 | Q104: 0.0343 | R104: 0.0349 | S104: 0.0353 | T104: 0.0357 | U104: 0.0362 | V104: 0.0365 | W104: 0.0367 | X104: 0.0369 | Y104: 0.037 | Z104: 0.0373 | AA104: 0.0375 | AB104: 0.0378 | AC104: 0.038 | AD104: 0.038 | AE104: 0.0382 | AF104: 0.0385 | AG104: 0.039 | AH104: 0.0391 | AI104: 0.0387 | AJ104: 0.038 | AK104: 0.0383 | AL104: 0.03857190897 | AM104: 0.03968708174 | AN104: 0.04017899069 | AO104: 0.04094736463 | AP104: 0.04204484512 | AQ104: 0.04254703963 | AR104: 0.04323755862 | AS104: 0.04373258892 | AT104: 0.04412381705 | AU104: 0.04453138172 | AV104: 0.04522788281 | AW104: 0.0469899546 | AX104: 0.04768534359 | AY104: 0.04819507464 | AZ104: 0.04933409539 | BA104: 0.04977980253 | BB104: 0.05148373794 | BC104: 0.05196179462 | BD104: 0.05276021593 | BE104: 0.0536057512 | BF104: 0.05497794282 | BG104: 0
A105: % of Fixed Rate Mortgages | B105: 0.7895 | C105: 0.7898 | D105: 0.7877 | E105: 0.6057 | F105: 0.6356 | G105: 0.6523 | H105: 0.6513 | I105: 0.2674 | J105: 0.3704 | K105: 0.4211 | L105: 0.4871 | M105: 0.4282 | N105: 0.3589 | O105: 0.2409 | P105: 0.1941 | Q105: 0.1736 | R105: 0.1753 | S105: 0.1732 | T105: 0.0871 | U105: 0.0272 | V105: 0.0274 | W105: 0.0197 | X105: 0.0176 | Y105: 0.0031 | Z105: 0.002 | AA105: 0.002 | AB105: 0 | AC105: 0 | AD105: 0 | AE105: 0 | AF105: 0 | AG105: 0 | AH105: 0 | AI105: 0 | AJ105: 0 | AK105: 0 | AL105: 0 | AM105: 0 | AN105: 0 | AO105: 0 | AP105: 0 | AQ105: 0 | AR105: 0 | AS105: 0 | AT105: 0 | AU105: 0 | AV105: 0 | AW105: 0 | AX105: 0 | AY105: 0 | AZ105: 0 | BA105: 0 | BB105: 0 | BC105: 0 | BD105: 0 | BE105: 0 | BF105: 0 | BG105: 0
A106: % of Base Rate Mortgages | B106: 0 | C106: 0 | D106: 0 | E106: 0.0007 | F106: 0 | G106: 0 | H106: 0 | I106: 0 | J106: 0 | K106: 0 | L106: 0 | M106: 0 | N106: 0 | O106: 0 | P106: 0 | Q106: 0 | R106: 0 | S106: 0 | T106: 0 | U106: 0 | V106: 0 | W106: 0 | X106: 0 | Y106: 0 | Z106: 0 | AA106: 0 | AB106: 0 | AC106: 0 | AD106: 0 | AE106: 0 | AF106: 0 | AG106: 0 | AH106: 0 | AI106: 0 | AJ106: 0 | AK106: 0 | AL106: 0 | AM106: 0 | AN106: 0 | AO106: 0 | AP106: 0 | AQ106: 0 | AR106: 0 | AS106: 0 | AT106: 0 | AU106: 0 | AV106: 0 | AW106: 0 | AX106: 0 | AY106: 0 | AZ106: 0 | BA106: 0 | BB106: 0 | BC106: 0 | BD106: 0 | BE106: 0 | BF106: 0 | BG106: 0
A107: % of Libor Linked Mortgages | B107: 0.2102 | C107: 0.2099 | D107: 0.2113 | E107: 0.3936 | F107: 0.3637 | G107: 0.3462 | H107: 0.3467 | I107: 0.7217 | J107: 0.6008 | K107: 0.5452 | L107: 0.4763 | M107: 0.5411 | N107: 0.6091 | O107: 0.7254 | P107: 0.772 | Q107: 0.7921 | R107: 0.7898 | S107: 0.7915 | T107: 0.8772 | U107: 0.9366 | V107: 0.936 | W107: 0.9436 | X107: 0.9455 | Y107: 0.9599 | Z107: 0.9607 | AA107: 0.9605 | AB107: 0.9622 | AC107: 0.962 | AD107: 0.962 | AE107: 0.9618 | AF107: 0.9615 | AG107: 0.961 | AH107: 0.9609 | AI107: 0.9613 | AJ107: 0.962 | AK107: 0.9617 | AL107: 0.961428091 | AM107: 0.9603129183 | AN107: 0.9598210093 | AO107: 0.9590526354 | AP107: 0.9579551549 | AQ107: 0.9574529604 | AR107: 0.9567624414 | AS107: 0.9562674111 | AT107: 0.955876183 | AU107: 0.9554686183 | AV107: 0.9547721172 | AW107: 0.9530100454 | AX107: 0.9523146564 | AY107: 0.9518049254 | AZ107: 0.9506659046 | BA107: 0.9502201975 | BB107: 0.9485162621 | BC107: 0.9480382054 | BD107: 0.9472397841 | BE107: 0.9463942488 | BF107: 0.9450220572 | BG107: 0
A108: Weighted Average Loan Size | B108: 119998.86 | C108: 120609.2 | D108: 120804.83 | E108: 121477.34 | F108: 121835.65 | G108: 122405.35 | H108: 123547.82 | I108: 122968.44 | J108: 120557.42 | K108: 120966.25 | L108: 121991.06 | M108: 120415.92 | N108: 120687.7 | O108: 119364.18 | P108: 119488.85 | Q108: 119583.73 | R108: 117792.4 | S108: 117362.93 | T108: 117116.89 | U108: 116443.1 | V108: 116634.73 | W108: 116526.13 | X108: 116459.5 | Y108: 116546.53 | Z108: 116200.22 | AA108: 116370.84 | AB108: 116367.42 | AC108: 116102.07 | AD108: 116077.91 | AE108: 115843.07 | AF108: 115985.85 | AG108: 115707.95 | AH108: 115837.36 | AI108: 115800.19 | AJ108: 115375.69 | AK108: 115350.09 | AL108: 115070.8632 | AM108: 114312.018 | AN108: 113905.1773 | AO108: 114333.1846 | AP108: 113432.0285 | AQ108: 113322.8632 | AR108: 113119.6639 | AS108: 113105.0244 | AT108: 113195.9027 | AU108: 113074.5374 | AV108: 112634.4811 | AW108: 110653.7082 | AX108: 109977.0287 | AY108: 109566.1215 | AZ108: 109344.3352 | BA108: 109143.8678 | BB108: 107495.0619 | BC108: 107698.6965 | BD108: 106885.0075 | BE108: 106733.8652 | BF108: 106419.413 | BG108: 0
A109: Weighted Average Interest Rate | B109: 0.05404 | C109: 0.0539 | D109: 0.05411 | E109: 0.055 | F109: 0.05564 | G109: 0.05667 | H109: 0.05816 | I109: 0.06843 | J109: 0.07203 | K109: 0.06989 | L109: 0.06395 | M109: 0.06619 | N109: 0.06696 | O109: 0.05492 | P109: 0.04036 | Q109: 0.0342 | R109: 0.02957 | S109: 0.02899 | T109: 0.02691 | U109: 0.02563 | V109: 0.02586 | W109: 0.02578 | X109: 0.0263 | Y109: 0.02603 | Z109: 0.02659 | AA109: 0.02804 | AB109: 0.0282 | AC109: 0.02756 | AD109: 0.02459 | AE109: 0.02306 | AF109: 0.02291 | AG109: 0.02293 | AH109: 0.02303 | AI109: 0.02305 | AJ109: 0.02303 | AK109: 0.02311 | AL109: 0.02339062642 | AM109: 0.0233476651 | AN109: 0.02360947538 | AO109: 0.02375240284 | AP109: 0.02391056678 | AQ109: 0.02377818746 | AR109: 0.0239101608 | AS109: 0.02390668683 | AT109: 0.02183308676 | AU109: 0.02181343094 | AV109: 0.02145909862 | AW109: 0.02104818808 | AX109: 0.02091906594 | AY109: 0.02335234244 | AZ109: 0.02389866751 | BA109: 0.02421916492 | BB109: 0.02601845833 | BC109: 0.02688888646 | BD109: 0.02648019205 | BE109: 0.0259676042 | BF109: 0.02569728488 | BG109: 0
A110: Weighted Average Maturity Date (years) | B110: 21.69 | C110: 21.46 | D110: 21.2 | E110: 20.96 | F110: 20.72 | G110: 20.45 | H110: 20.18 | I110: 20.09 | J110: 19.87 | K110: 19.59 | L110: 19.35 | M110: 19.07 | N110: 18.81 | O110: 18.63 | P110: 18.37 | Q110: 18.13 | R110: 17.93 | S110: 17.69 | T110: 17.45 | U110: 17.21 | V110: 16.97 | W110: 16.72 | X110: 16.46 | Y110: 16.23 | Z110: 16 | AA110: 15.81 | AB110: 15.56 | AC110: 15.32 | AD110: 15.07 | AE110: 14.84 | AF110: 14.58 | AG110: 14.36 | AH110: 14.13 | AI110: 13.92 | AJ110: 13.7 | AK110: 13.47 | AL110: 13.24062195 | AM110: 13.10064787 | AN110: 12.90528319 | AO110: 12.66937188 | AP110: 12.43222771 | AQ110: 12.19486736 | AR110: 11.98328719 | AS110: 11.75633595 | AT110: 11.54747231 | AU110: 11.27981752 | AV110: 11.04869027 | AW110: 10.88524965 | AX110: 10.60527305 | AY110: 10.40156537 | AZ110: 10.15451177 | BA110: 9.944463013 | BB110: 9.792223582 | BC110: 9.575150518 | BD110: 9.341471007 | BE110: 9.097723373 | BF110: 8.939488802 | BG110: 0
A111: Weighted Average Seasoning (months) | B111: 9.03 | C111: 12.01 | D111: 14.31 | E111: 17.28 | F111: 20.32 | G111: 23.32 | H111: 26.18 | I111: 29.38 | J111: 32.53 | K111: 35.59 | L111: 38.59 | M111: 41.61 | N111: 44.67 | O111: 47.64 | P111: 50.57 | Q111: 53.58 | R111: 56.64 | S111: 59.68 | T111: 62.61 | U111: 65.63 | V111: 68.65 | W111: 71.68 | X111: 74.61 | Y111: 77.65 | Z111: 80.67 | AA111: 83.69 | AB111: 86.65 | AC111: 89.68 | AD111: 92.71 | AE111: 95.74 | AF111: 98.66 | AG111: 101.7 | AH111: 104.73 | AI111: 107.78 | AJ111: 110.71 | AK111: 113.72 | AL111: 116.7524482 | AM111: 119.7771926 | AN111: 122.7094938 | AO111: 125.7273517 | AP111: 128.735669 | AQ111: 131.755479 | AR111: 134.7316574 | AS111: 137.777118 | AT111: 140.7173697 | AU111: 143.7585553 | AV111: 146.6668429 | AW111: 149.6920915 | AX111: 152.7425663 | AY111: 155.8003622 | AZ111: 158.7632566 | BA111: 161.7617902 | BB111: 164.777145 | BC111: 167.8159652 | BD111: 170.6902133 | BE111: 173.7268475 | BF111: 176.7006549 | BG111: 0
A112: % of Interest Only Mortgages | B112: 0.936 | C112: 0.9359 | D112: 0.9364 | E112: 0.9366 | F112: 0.9384 | G112: 0.9403 | H112: 0.9418 | I112: 0.9385 | J112: 0.9343 | K112: 0.9326 | L112: 0.9364 | M112: 0.9371 | N112: 0.9375 | O112: 0.9408 | P112: 0.9402 | Q112: 0.9434 | R112: 0.9437 | S112: 0.9437 | T112: 0.9437 | U112: 0.9435 | V112: 0.9477 | W112: 0.9477 | X112: 0.9487 | Y112: 0.9498 | Z112: 0.9499 | AA112: 0.9503 | AB112: 0.9504 | AC112: 0.9515 | AD112: 0.955 | AE112: 0.9555 | AF112: 0.958 | AG112: 0.9595 | AH112: 0.9581 | AI112: 0.9594 | AJ112: 0.9595 | AK112: 0.9596 | AL112: 0.9600948157 | AM112: 0.9628550466 | AN112: 0.9630721628 | AO112: 0.9652883683 | AP112: 0.9649858039 | AQ112: 0.9659893374 | AR112: 0.9669711168 | AS112: 0.969384292 | AT112: 0.9697386447 | AU112: 0.9700919705 | AV112: 0.9655770518 | AW112: 0.9656755113 | AX112: 0.9693931941 | AY112: 0.9698356307 | AZ112: 0.9709818298 | BA112: 0.9715010948 | BB112: 0.9713539967 | BC112: 0.9714669077 | BD112: 0.9718373725 | BE112: 0.9733857651 | BF112: 0.9734972142 | BG112: 0
A113: % of Repayment Mortgages | B113: 0.064 | C113: 0.0641 | D113: 0.0636 | E113: 0.0634 | F113: 0.0616 | G113: 0.0597 | H113: 0.0582 | I113: 0.0615 | J113: 0.0657 | K113: 0.0674 | L113: 0.0636 | M113: 0.0629 | N113: 0.0625 | O113: 0.0592 | P113: 0.0598 | Q113: 0.0566 | R113: 0.0563 | S113: 0.0563 | T113: 0.0563 | U113: 0.0565 | V113: 0.0523 | W113: 0.0523 | X113: 0.0513 | Y113: 0.0502 | Z113: 0.0501 | AA113: 0.0497 | AB113: 0.0496 | AC113: 0.0485 | AD113: 0.045 | AE113: 0.0445 | AF113: 0.042 | AG113: 0.0405 | AH113: 0.0419 | AI113: 0.0406 | AJ113: 0.0405 | AK113: 0.0404 | AL113: 0.03990518427 | AM113: 0.03714495345 | AN113: 0.03692783718 | AO113: 0.03471163167 | AP113: 0.03501419615 | AQ113: 0.03401066258 | AR113: 0.03302888317 | AS113: 0.03061570797 | AT113: 0.03026135534 | AU113: 0.02990802949 | AV113: 0.03442294816 | AW113: 0.0343244887 | AX113: 0.03060680593 | AY113: 0.03016436933 | AZ113: 0.02901817023 | BA113: 0.02849890515 | BB113: 0.02864600333 | BC113: 0.02853309227 | BD113: 0.02816262752 | BE113: 0.02661423487 | BF113: 0.02650278577 | BG113: 0
A114: % of Mortgages in London | B114: 0.2387 | C114: 0.241 | D114: 0.2407 | E114: 0.2433 | F114: 0.2441 | G114: 0.2418 | H114: 0.24 | I114: 0.2117 | J114: 0.2004 | K114: 0.2006 | L114: 0.1969 | M114: 0.1833 | N114: 0.1786 | O114: 0.1661 | P114: 0.1665 | Q114: 0.1669 | R114: 0.1703 | S114: 0.1708 | T114: 0.1721 | U114: 0.1726 | V114: 0.1702 | W114: 0.1707 | X114: 0.1681 | Y114: 0.1686 | Z114: 0.1673 | AA114: 0.1685 | AB114: 0.1694 | AC114: 0.1657 | AD114: 0.1658 | AE114: 0.1663 | AF114: 0.1638 | AG114: 0.1628 | AH114: 0.1637 | AI114: 0.1643 | AJ114: 0.1617 | AK114: 0.1623 | AL114: 0.1583908079 | AM114: 0.1555930013 | AN114: 0.1543787659 | AO114: 0.1572776662 | AP114: 0.1484550747 | AQ114: 0.1501561705 | AR114: 0.152504074 | AS114: 0.1523864247 | AT114: 0.1516680287 | AU114: 0.1529950033 | AV114: 0.1525971431 | AW114: 0.1451239787 | AX114: 0.1425947007 | AY114: 0.1362420502 | AZ114: 0.1394226889 | BA114: 0.1402934674 | BB114: 0.1282100554 | BC114: 0.1284619752 | BD114: 0.1306995383 | BE114: 0.1302285575 | BF114: 0.1339652307 | BG114: 0
A115: % of Mortgages in the South East | B115: 0.3049 | C115: 0.306 | D115: 0.3051 | E115: 0.3036 | F115: 0.3074 | G115: 0.3133 | H115: 0.3173 | I115: 0.3192 | J115: 0.3109 | K115: 0.3023 | L115: 0.3032 | M115: 0.309 | N115: 0.307 | O115: 0.3027 | P115: 0.3029 | Q115: 0.302 | R115: 0.2903 | S115: 0.2882 | T115: 0.2862 | U115: 0.2903 | V115: 0.2919 | W115: 0.2901 | X115: 0.2901 | Y115: 0.2897 | Z115: 0.287 | AA115: 0.2876 | AB115: 0.2848 | AC115: 0.2863 | AD115: 0.2862 | AE115: 0.2853 | AF115: 0.2873 | AG115: 0.2871 | AH115: 0.2851 | AI115: 0.2826 | AJ115: 0.281 | AK115: 0.2803 | AL115: 0.2808422783 | AM115: 0.2738695936 | AN115: 0.2733687905 | AO115: 0.2688973328 | AP115: 0.269710552 | AQ115: 0.2642969667 | AR115: 0.2624655382 | AS115: 0.2586448093 | AT115: 0.2608941035 | AU115: 0.26017366 | AV115: 0.2557050356 | AW115: 0.2597637019 | AX115: 0.2598133478 | AY115: 0.2624088438 | AZ115: 0.2617100281 | BA115: 0.2592565635 | BB115: 0.2571692986 | BC115: 0.2539010319 | BD115: 0.2545064785 | BE115: 0.2496491369 | BF115: 0.2430492321 | BG115: 0
A116: % of Owner Occupied Mortgages | B116: 0 | C116: 0 | D116: 0 | E116: 0 | F116: 0 | G116: 0 | H116: 0 | I116: 0 | J116: 0 | K116: 0 | L116: 0 | M116: 0 | N116: 0 | O116: 0 | P116: 0 | Q116: 0 | R116: 0 | S116: 0 | T116: 0 | U116: 0 | V116: 0 | W116: 0 | X116: 0 | Y116: 0 | Z116: 0 | AA116: 0 | AB116: 0 | AC116: 0 | AD116: 0 | AE116: 0 | AF116: 0 | AG116: 0 | AH116: 0 | AI116: 0 | AJ116: 0 | AK116: 0 | AL116: 0 | AM116: 0 | AN116: 0 | AO116: 0 | AP116: 0 | AQ116: 0 | AR116: 0 | AS116: 0 | AT116: 0 | AU116: 0 | AV116: 0 | AW116: 0 | AX116: 0 | AY116: 0 | AZ116: 0 | BA116: 0 | BB116: 0 | BC116: 0 | BD116: 0 | BE116: 0 | BF116: 0 | BG116: 0
A117: % of Investment Home Loans - Professional Landlords | B117: 0.4723 | C117: 0.4735 | D117: 0.479 | E117: 0.473 | F117: 0.4734 | G117: 0.4695 | H117: 0.4642 | I117: 0.48 | J117: 0.4637 | K117: 0.4589 | L117: 0.4587 | M117: 0.4709 | N117: 0.4759 | O117: 0.481 | P117: 0.4803 | Q117: 0.4776 | R117: 0.4721 | S117: 0.4698 | T117: 0.471 | U117: 0.4662 | V117: 0.4658 | W117: 0.4644 | X117: 0.4657 | Y117: 0.4659 | Z117: 0.4668 | AA117: 0.4654 | AB117: 0.4615 | AC117: 0.4628 | AD117: 0.4627 | AE117: 0.4617 | AF117: 0.4633 | AG117: 0.4651 | AH117: 0.465 | AI117: 0.472 | AJ117: 0.4743 | AK117: 0.4745 | AL117: 0.4777066841 | AM117: 0.4758476092 | AN117: 0.4815395968 | AO117: 0.4796469194 | AP117: 0.4780298477 | AQ117: 0.4822767908 | AR117: 0.4845526964 | AS117: 0.4866743124 | AT117: 0.4825382823 | AU117: 0.4841131898 | AV117: 0.4806823135 | AW117: 0.4724957954 | AX117: 0.4741880752 | AY117: 0.4768817936 | AZ117: 0.4755908146 | BA117: 0.4782976343 | BB117: 0.4715931838 | BC117: 0.4746332476 | BD117: 0.4732008843 | BE117: 0.479256814 | BF117: 0.4786197541 | BG117: 0
A118: % of Investment Home Loans - Emerging Professional Landlords | B118: 0.5277 | C118: 0.5265 | D118: 0.521 | E118: 0.527 | F118: 0.5266 | G118: 0.5305 | H118: 0.5358 | I118: 0.52 | J118: 0.5363 | K118: 0.5411 | L118: 0.5413 | M118: 0.5291 | N118: 0.5241 | O118: 0.519 | P118: 0.5197 | Q118: 0.5224 | R118: 0.5279 | S118: 0.5302 | T118: 0.529 | U118: 0.5338 | V118: 0.5342 | W118: 0.5356 | X118: 0.5343 | Y118: 0.5341 | Z118: 0.5332 | AA118: 0.5346 | AB118: 0.5385 | AC118: 0.5372 | AD118: 0.5373 | AE118: 0.5383 | AF118: 0.5367 | AG118: 0.5349 | AH118: 0.535 | AI118: 0.528 | AJ118: 0.5257 | AK118: 0.5255 | AL118: 0.5222933159 | AM118: 0.5241523908 | AN118: 0.5184604032 | AO118: 0.5203530806 | AP118: 0.5219701523 | AQ118: 0.5177232092 | AR118: 0.5154473036 | AS118: 0.5133256876 | AT118: 0.5174617177 | AU118: 0.5158868102 | AV118: 0.5193176865 | AW118: 0.5275042046 | AX118: 0.5258119248 | AY118: 0.5231182064 | AZ118: 0.5244091854 | BA118: 0.5217023657 | BB118: 0.5284068162 | BC118: 0.5253667524 | BD118: 0.5267991157 | BE118: 0.520743186 | BF118: 0.5213802459 | BG118: 0
A119: Weighted Average Interest Coverage Ratio (calculated at the origination date) | B119: 1.34 | C119: 1.34 | D119: 1.42 | E119: 1.42 | F119: 1.43 | G119: 1.43 | H119: 1.44 | I119: 1.47 | J119: 1.53 | K119: 1.55 | L119: 1.57 | M119: 1.59 | N119: 1.59 | O119: 1.61 | P119: 1.61 | Q119: 1.61 | R119: 1.62 | S119: 1.63 | T119: 1.63 | U119: 1.64 | V119: 1.64 | W119: 1.65 | X119: 1.65 | Y119: 1.65 | Z119: 1.66 | AA119: 1.66 | AB119: 1.67 | AC119: 1.67 | AD119: 1.67 | AE119: 1.67 | AF119: 1.67 | AG119: 1.68 | AH119: 1.68 | AI119: 1.69 | AJ119: 1.69 | AK119: 1.7 | AL119: 1.696683214 | AM119: 1.711726875 | AN119: 1.712574166 | AO119: 1.726313441 | AP119: 1.729941185 | AQ119: 1.73274154 | AR119: 1.737576033 | AS119: 1.741387352 | AT119: 1.735003235 | AU119: 1.739167011 | AV119: 1.752483846 | AW119: 1.760283167 | AX119: 1.767183076 | AY119: 1.809323867 | AZ119: 1.826411185 | BA119: 1.828835427 | BB119: 1.856315116 | BC119: 1.858096133 | BD119: 1.869349949 | BE119: 1.8740772 | BF119: 1.819376097 | BG119: 0
A120: MTL Lifetime Redemption Rate | B120: 0.0515 | C120: 0.0617 | D120: 0.0757 | E120: 0.0865 | F120: 0.0906 | G120: 0.0983 | H120: 0.1108 | I120: 0.2088 | J120: 0.2575 | K120: 0.2736 | L120: 0.2745 | M120: 0.2755 | N120: 0.2681 | O120: 0.2626 | P120: 0.249 | Q120: 0.2381 | R120: 0.2299 | S120: 0.221 | T120: 0.2127 | U120: 0.205 | V120: 0.1979 | W120: 0.1908 | X120: 0.1847 | Y120: 0.1786 | Z120: 0.1736 | AA120: 0.1689 | AB120: 0.1644 | AC120: 0.1599 | AD120: 0.1554 | AE120: 0.1513 | AF120: 0.1478 | AG120: 0.1451 | AH120: 0.1418 | AI120: 0.1397 | AJ120: 0.1377 | AK120: 0.1349 | AL120: 0.1325 | AM120: 0.1322 | AN120: 0.1303 | AO120: 0.1291 | AP120: 0.1285 | AQ120: 0.1268 | AR120: 0.1255 | AS120: 0.1239 | AT120: 0.1222 | AU120: 0.1206 | AV120: 0.1195 | AW120: 0.1201 | AX120: 0.119 | AY120: 0.1179 | AZ120: 0.1175 | BA120: 0.1161 | BB120: 0.1164 | BC120: 0.1151 | BD120: 0.1144 | BE120: 0.1137 | BF120: 0.1136 | BG120: 1
A121: Aggregate Potential Redraw Amount | B121: 1375672.33 | C121: 1159756.16 | D121: 1087991.79 | E121: 1143512.22 | F121: 958446.38 | G121: 760461.49 | H121: 544186.26 | I121: 447223.05 | J121: 448362.69 | K121: 475338.15 | L121: 249959.62 | M121: 280168.4 | N121: 268410.76 | O121: 261169.18 | P121: 275535.73 | Q121: 333956.16 | R121: 334937.47 | S121: 343483.89 | T121: 266317.32 | U121: 199669.74 | V121: 208461.42 | W121: 255493.88 | X121: 219488.64 | Y121: 230465.04 | Z121: 204031.21 | AA121: 216994.4 | AB121: 204057.33 | AC121: 214245.72 | AD121: 253132.86 | AE121: 238087.53 | AF121: 248684.37 | AG121: 221895.44 | AH121: 0 | AI121: 0 | AJ121: 0 | AK121: 0 | AL121: 0 | AM121: 0 | AN121: 0 | AO121: 0 | AP121: 0 | AQ121: 0 | AR121: 0 | AS121: 0 | AT121: 0 | AU121: 0 | AV121: 0 | AW121: 0 | AX121: 0 | AY121: 0 | AZ121: 0 | BA121: 0 | BB121: 0 | BC121: 0 | BD121: 0 | BE121: 0 | BF121: 0 | BG121: 0
A122: Number of Properties in Possession | B122: 0 | C122: 0 | D122: 0 | E122: 0 | F122: 0 | G122: 0 | H122: 0 | I122: 0 | J122: 0 | K122: 0 | L122: 0 | M122: 0 | N122: 0 | O122: 0 | P122: 0 | Q122: 0 | R122: 0 | S122: 0 | T122: 0 | U122: 0 | V122: 0 | W122: 0 | X122: 0 | Y122: 0 | Z122: 1 | AA122: 0 | AB122: 0 | AC122: 0 | AD122: 0 | AE122: 0 | AF122: 0 | AG122: 0 | AH122: 0 | AI122: 0 | AJ122: 0 | AK122: 0 | AL122: 0 | AM122: 0 | AN122: 0 | AO122: 0 | AP122: 0 | AQ122: 0 | AR122: 0 | AS122: 0 | AT122: 0 | AU122: 0 | AV122: 0 | AW122: 0 | AX122: 0 | AY122: 0 | AZ122: 0 | BA122: 0 | BB122: 0 | BC122: 0 | BD122: 0 | BE122: 0 | BF122: 0 | BG122: 0
A123: Appointment of a Receiver of Rent | B123: 0 | C123: 4 | D123: 5 | E123: 10 | F123: 12 | G123: 17 | H123: 18 | I123: 18 | J123: 17 | K123: 18 | L123: 23 | M123: 28 | N123: 29 | O123: 40 | P123: 37 | Q123: 38 | R123: 38 | S123: 36 | T123: 32 | U123: 27 | V123: 28 | W123: 27 | X123: 25 | Y123: 22 | Z123: 24 | AA123: 15 | AB123: 14 | AC123: 14 | AD123: 14 | AE123: 13 | AF123: 12 | AG123: 13 | AH123: 13 | AI123: 14 | AJ123: 14 | AK123: 14 | AL123: 14 | AM123: 12 | AN123: 12 | AO123: 10 | AP123: 11 | AQ123: 11 | AR123: 11 | AS123: 11 | AT123: 9 | AU123: 9 | AV123: 8 | AW123: 8 | AX123: 8 | AY123: 8 | AZ123: 7 | BA123: 6 | BB123: 6 | BC123: 7 | BD123: 8 | BE123: 5 | BF123: 5 | BG123: 0
A124: MTL Quarterly Losses | B124: 0 | C124: 0 | D124: 0 | E124: 0 | F124: 0 | G124: 0 | H124: 0 | I124: 102 | J124: 90 | K124: 0 | L124: 1 | M124: 37 | N124: 108 | O124: 61 | P124: 228 | Q124: 331 | R124: 51 | S124: 93 | T124: 273 | U124: 587 | V124: 0 | W124: 45 | X124: 157 | Y124: -1084 | Z124: -25 | AA124: 106 | AB124: 34 | AC124: -9 | AD124: 29 | AE124: 80 | AF124: 12 | AG124: 10 | AH124: -95 | AI124: 15 | AJ124: -2 | AK124: -2 | AL124: -3 | AM124: 19 | AN124: -6 | AO124: 104 | AP124: -2 | AQ124: 93 | AR124: -2 | AS124: 4 | AT124: -12 | AU124: -2 | AV124: 28 | AW124: -15 | AX124: -1 | AY124: -26 | AZ124: 25 | BA124: 32 | BB124: -2 | BC124: -1 | BD124: -1 | BE124: 122 | BF124: 38 | BG124: 0
A125: Arrears excluding Receiver of Rent and Possession Cases
A126: Performing Loans | B126: 0.9897 | C126: 0.9932 | D126: 0.9893 | E126: 0.989 | F126: 0.9872 | G126: 0.9933 | H126: 0.9857 | I126: 0.9731 | J126: 0.9864 | K126: 0.9772 | L126: 0.9787 | M126: 0.9827 | N126: 0.9778 | O126: 0.9763 | P126: 0.9862 | Q126: 0.9907 | R126: 0.9984 | S126: 0.9943 | T126: 0.9905 | U126: 0.9905 | V126: 0.9989 | W126: 0.9938 | X126: 0.9968 | Y126: 0.9954 | Z126: 0.9967 | AA126: 0.9978 | AB126: 0.9951 | AC126: 0.9951 | AD126: 0.9987 | AE126: 0.998 | AF126: 0.9927 | AG126: 0.9989 | AH126: 1 | AI126: 0.9979 | AJ126: 1 | AK126: 0.9989 | AL126: 1 | AM126: 1 | AN126: 1 | AO126: 0.9963427359 | AP126: 1 | AQ126: 1 | AR126: 1 | AS126: 0.9970841848 | AT126: 0.9972718999 | AU126: 0.9948682145 | AV126: 0.9931594921 | AW126: 1 | AX126: 1 | AY126: 0.9985038698 | AZ126: 1 | BA126: 1 | BB126: 1 | BC126: 1 | BD126: 1 | BE126: 0.99785677 | BF126: 0.9978008336 | BG126: 0
A127: >1 to 2 months arrears | B127: 0.0064 | C127: 0.004 | D127: 0.0046 | E127: 0.0062 | F127: 0.0081 | G127: 0.0046 | H127: 0.0101 | I127: 0.0243 | J127: 0.0115 | K127: 0.0158 | L127: 0.0137 | M127: 0.0113 | N127: 0.0148 | O127: 0.0123 | P127: 0.0096 | Q127: 0.0084 | R127: 0.0016 | S127: 0.001 | T127: 0.0084 | U127: 0.0048 | V127: 0 | W127: 0.0051 | X127: 0.0021 | Y127: 0.0046 | Z127: 0.0033 | AA127: 0.0022 | AB127: 0.0038 | AC127: 0.0035 | AD127: 0 | AE127: 0.002 | AF127: 0.0073 | AG127: 0.0011 | AH127: 0 | AI127: 0.0021 | AJ127: 0 | AK127: 0.0011 | AL127: 0 | AM127: 0 | AN127: 0 | AO127: 0 | AP127: 0 | AQ127: 0 | AR127: 0 | AS127: 0.002915815178 | AT127: 0.002728100091 | AU127: 0.005131785541 | AV127: 0.004426501958 | AW127: 0 | AX127: 0 | AY127: 0.00149613017 | AZ127: 0 | BA127: 0 | BB127: 0 | BC127: 0 | BD127: 0 | BE127: 0.002143229958 | BF127: 0.002199166388 | BG127: 0
A128: >2 to 3 months arrears | B128: 0.0026 | C128: 0.0019 | D128: 0.0047 | E128: 0.0027 | F128: 0.0018 | G128: 0.0011 | H128: 0.0032 | I128: 0.0016 | J128: 0.0021 | K128: 0.007 | L128: 0.0076 | M128: 0.006 | N128: 0.0024 | O128: 0.0043 | P128: 0.0018 | Q128: 0.0009 | R128: 0 | S128: 0.0047 | T128: 0.0011 | U128: 0 | V128: 0.0011 | W128: 0 | X128: 0 | Y128: 0 | Z128: 0 | AA128: 0 | AB128: 0.0011 | AC128: 0.0014 | AD128: 0 | AE128: 0 | AF128: 0 | AG128: 0 | AH128: 0 | AI128: 0 | AJ128: 0 | AK128: 0 | AL128: 0 | AM128: 0 | AN128: 0 | AO128: 0.003657264146 | AP128: 0 | AQ128: 0 | AR128: 0 | AS128: 0 | AT128: 0 | AU128: 0 | AV128: 0.002414005957 | AW128: 0 | AX128: 0 | AY128: 0 | AZ128: 0 | BA128: 0 | BB128: 0 | BC128: 0 | BD128: 0 | BE128: 0 | BF128: 0 | BG128: 0
A129: >3 months arrears | B129: 0.0013 | C129: 0.0009 | D129: 0.0014 | E129: 0.0021 | F129: 0.0029 | G129: 0.001 | H129: 0.001 | I129: 0.001 | J129: 0 | K129: 0 | L129: 0 | M129: 0 | N129: 0.005 | O129: 0.0071 | P129: 0.0024 | Q129: 0 | R129: 0 | S129: 0 | T129: 0 | U129: 0.0047 | V129: 0 | W129: 0.0011 | X129: 0.0011 | Y129: 0 | Z129: 0 | AA129: 0 | AB129: 0 | AC129: 0 | AD129: 0.0013 | AE129: 0 | AF129: 0 | AG129: 0 | AH129: 0 | AI129: 0 | AJ129: 0 | AK129: 0 | AL129: 0 | AM129: 0 | AN129: 0 | AO129: 0 | AP129: 0 | AQ129: 0 | AR129: 0 | AS129: 0 | AT129: 0 | AU129: 0 | AV129: 0 | AW129: 0 | AX129: 0 | AY129: 0 | AZ129: 0 | BA129: 0 | BB129: 0 | BC129: 0 | BD129: 0 | BE129: 0 | BF129: 0 | BG129: 0
A130: Total | B130: =SUM(B126:B129) -> 1 | C130: 1 | D130: 1 | E130: 1 | F130: 1 | G130: 1 | H130: 1 | I130: 1 | J130: 1 | K130: 1 | L130: 1 | M130: 1 | N130: 1 | O130: 1 | P130: 1 | Q130: 1 | R130: 1 | S130: 1 | T130: 1 | U130: 1 | V130: 1 | W130: 1 | X130: 1 | Y130: 1 | Z130: 1 | AA130: =SUM(AA126:AA129) -> 1 | AB130: 1 | AC130: 1 | AD130: 1 | AE130: 1 | AF130: 1 | AG130: =SUM(AG126:AG129) -> 1 | AH130: 1 | AI130: 1 | AJ130: 1 | AK130: 1 | AL130: 1 | AM130: 1 | AN130: 1 | AO130: 1 | AP130: 1 | AQ130: 1 | AR130: 1 | AS130: 1 | AT130: 1 | AU130: 1 | AV130: 1 | AW130: 1 | AX130: 1 | AY130: 1 | AZ130: 1 | BA130: 1 | BB130: 1 | BC130: 1 | BD130: 1 | BE130: 1 | BF130: 1 | BG130: =SUM(BG126:BG129) -> 0

Sheet Graphs
P2: PARAGON MORTGAGES (NO.9) PLC
